{"text_format":"1","workbook":"xlsx","n_sheets":14,"sheets":["ENERO","FEBRERO","MARZO","I TRIMESTRE 2023","ABRIL","MAYO","JUNIO","JULIO","AGOSTO","SETIEMBRE","OCTUBRE","NOVIEMBRE","DICIEMBRE","Final"],"not_rendered":{"charts":14,"images":1,"macros":1,"external_links":0,"defined_names":0,"comments":0,"pivot_tables":0},"unopened":[],"bounds":{"document_bytes":16777216,"sheet_cells":100000,"rows_first":2000,"rows_last":500,"rows_between":2000,"halvings":0,"cell_chars":16384,"cell_head_chars":4096},"cells_cut":0,"cells_raw":0,"read":"whole","date_system":"1900"}

{"sheet":"ENERO","index":0,"n_rows":59,"n_cols":13,"rows_kept":59,"cut":false,"hidden":false,"merged":[[58,2,58,3],[6,0,14,0],[15,0,25,0],[26,0,31,0],[32,0,38,0],[50,2,51,2],[52,2,53,2],[54,2,55,2],[56,2,57,2]]}
[]
[]
[]
[null,"REGISTRO DE LA LISTA DE VERIFICACION DE CIRUGIA SEGURA"]
[null,"AÑO: U.E.408 HOSPITAL DE ESPINAR - ENERO 2023",null,null,"NO REGISTRA","NO PRECEDE"]
[null,null,"SI","NO","NR","NP","TOTAL"]
["ENTRADA","PACIENTE CONFIRMA SU IDENTIDAD, EL SITIO QUIRUGICO, EL PROCEDIMIENTO Y CONSENTIMIENTO",69,null,null,null,{"$f":"SUM(C7:F7)","v":69}]
[null,"SE HA MARCADO EL SITIO QUIRURGICO",57,12,null,null,{"$f":"SUM(C8:F8)","v":69},null,{"$f":"SUM(C7,C8,C9,C10,D11,D12,C13,D14,C15)","v":523},{"$f":"I8/$I$10","v":0.85597381342062195}]
[null,"SE COMPROBO LA DISPONIBILIDAD DE LOS EQUIPOS DE ANESTESIA Y LA MEDICACION ANESTESICA",68,1,null,null,69,null,{"$f":"SUM(D7,D8,D9,D10,C11,C12,D13,C14,D15)","v":88},{"$f":"I9/$I$10","v":0.14402618657937807}]
[null,"SE COLOCO EL PULXIOMETRO AL PACIENTE Y FUNCIONA",68,1,null,null,69,null,{"$f":"SUM(I8:I9)","v":611}]
[null,"EL PACIENTE TIENE ALERGIAS",3,66,null,null,69]
[null,"VIA AEREA DIFICIL / RIESGO DE ASPIRACION",3,66,null,null,69]
[null,"HAY INSTRUMENTAL Y EQUIPO DISPONIBLE",38,28,3,null,69]
[null,"RIESGO DE HEMORRAGIA MENOR A 500 ML",11,52,6,null,69]
[null,"SE HA PREVISTO DISPONIBILIDAD DE COMPONENTE SANGUINEO EN BANCO DE SANGRE",39,29,1,null,69]
["PAUSA","CONFIRMAR QUE TODOS LOS MIEMBROS DEL EQUIPO PROGRAMADOS SE HAYAN PRESENTADO POR SU NOMBRE",69,null,null,null,69]
[null,"CONFIRMAR LA IDENTIDAD DEL PACIENTE, EL PROCEDIMIENTO Y EL SITIO QUIRUGICO",69,null,null,null,69]
[null,"CONFIRMAR SI TODOS LOS MIEMBROS DEL EQUIPO HAN CUMPLIDO CORRECTAMENTE CON EL PROTOCOLO DE AS",69,null,null,null,69]
[null,"SE HA ADMINISTRADO PROFILAXIS CON ANTIBIOTICOS EN LOS ULTIMOS 60 MINUTOS",62,6,null,1,69,null,{"$f":"SUM(C16,C17,C18,C19,C20,,C22,D23,C24,D25,C26)","v":553},{"$f":"I19/$I$21","v":0.88480000000000003}]
[null,"¿CUALES SON LOS PASOS CRITICOS O INESPERADO?",7,57,5,null,69,null,{"$f":"SUM(D16,D17,D18,D19,D20,D21,D22,C23,D24,C25,D26)","v":72},{"$f":"I20/$I$21","v":0.1152}]
[null,"¿CUANTO DURARA LA OPERACIÓN?",67,1,1,null,69,null,{"$f":"SUM(I19:I20)","v":625}]
[null,"¿CUANTO ES LA PERDIDA DE SALGRE PREVISTA?",60,5,4,null,69]
[null,"¿PRESENTA EL PACIENTE ALGUN PROBLEMA ESPECIFICO?",3,66,null,null,69]
[null,"¿SE HA CONFIRMADO LA ESTERILIDAD DE ROPA, INSTRUMENTAL Y EQUIPOS?",69,null,null,null,69]
[null,"¿HAY DUDAS O PROBLEMAS RELACIONADOS CON ELLOS?",null,69,null,null,69]
[null,"¿PUEDEN VISUALIZARSE LAS IMÁGENES DIAGNOSTICADAS ESENCIALES?",13,null,null,56,69]
["SALIDA","EL ENFERMERO CONFIRMA VERBALMENTE EL NOMBRE DEL PROCEDIMIENTO",69,null,null,null,69]
[null,"EL RECUENTO DE INSTRUMENTOS, GASA Y AGUJAS",69,null,null,null,69,null,{"$f":"SUM(C27,C28,C29,C30,C31,D32)","v":215},{"$f":"I28/$I$30","v":0.67610062893081757}]
[null,"EL ETIQUETADO DE LAS MUESTRAS (LECTURA DE LA ETIQUETA EN VOZ ALTA, INCLUIDO EL NOMBRE DEL PACIENTE",8,35,3,23,69,null,{"$f":"SUM(D27,D28,D29,D30,D31,C32)","v":103},{"$f":"I29/$I$30","v":0.32389937106918237}]
[null,"SI HAY PROBLEMAS QUE SE RESUELVE RELACIONADOS CON EL INSTRUMENTAL Y LOS EQUIPOS",1,68,null,null,69,null,{"$f":"SUM(I28:I29)","v":318}]
[null,"(CIRUJANO, ANESTESIOLOGO, ENFERMERO) CUALES SON LOS ASPECTOS CRITICOS DE LA RECUPERACION Y EL TRAMITE",68,null,1,null,69]
[null,"OBSERVACIONES",null,null,69,null,69]
["FIRMA","FIRMA DEL CIRUJANO",69,null,null,null,69]
[null,"FIRMA DEL ANESTESIOLOGO",69,null,null,null,69]
[null,"FIRMA DE LA ENFERMERA",69,null,null,null,69,null,{"$f":"SUM(C33,C34,C35,C36,C37,C38,C39)","v":413},{"$f":"I35/$I$37","v":0.85507246376811596}]
[null,"FIRMA DEL COORDINADOR",null,69,null,null,69,null,{"$f":"SUM(D33,D34,D35,D36,D37,,D38,D39)","v":70},{"$f":"I36/$I$37","v":0.14492753623188406}]
[null,"NRO DE HISTORIA CLINICA",68,1,null,null,69,null,{"$f":"SUM(I35:I36)","v":483}]
[null,"NOMBRE Y APELLIDOS DEL PACIENTE",69,null,null,null,69]
[null,"FECHA",69,null,null,null,69]
[]
[]
[]
[]
[]
[null,"PORCENTAJE DE CUMPLIMIENTO DE LA LISTA DE VERIFICACION DE CIRUGIA SEGURA"]
[]
[]
[]
[]
[]
[null,null,"ENTRADA","(+)",{"$f":"J8","v":0.85597381342062195}]
[null,null,null,"(-)",{"$f":"J9","v":0.14402618657937807}]
[null,null,"PAUSA","(+)",{"$f":"J19","v":0.88480000000000003},null,null,null,null,null,null,null,"Cumplimiento"]
[null,null,null,"(-)",{"$f":"J20","v":0.1152},null,null,null,null,null,null,"Entrada",{"$f":"E51","v":0.85597381342062195}]
[null,null,"SALIDA","(+)",{"$f":"J28","v":0.67610062893081757},null,null,null,null,null,null,"Pausa",{"$f":"E53","v":0.88480000000000003}]
[null,null,null,"(-)",{"$f":"J29","v":0.32389937106918237},null,null,null,null,null,null,"Salida",{"$f":"E55","v":0.67610062893081757}]
[null,null,"FIRMA","(+)",{"$f":"J35","v":0.85507246376811596},null,null,null,null,null,null,"Firmas",{"$f":"E57","v":0.85507246376811596}]
[null,null,null,"(-)",{"$f":"J36","v":0.14492753623188406},null,null,null,null,null,null,"Cumplimiento",{"$f":"AVERAGE(M54:M57)","v":0.8179867265298888}]
[null,null,"CUMPLIMIENTO",null,{"$f":"M58","v":0.8179867265298888}]

{"sheet":"FEBRERO","index":1,"n_rows":59,"n_cols":13,"rows_kept":59,"cut":false,"hidden":false,"merged":[[54,2,55,2],[56,2,57,2],[58,2,58,3],[6,0,14,0],[15,0,25,0],[26,0,31,0],[32,0,38,0],[50,2,51,2],[52,2,53,2]]}
[]
[]
[]
[null,"REGISTRO DE LA LISTA DE VERIFICACION DE CIRUGIA SEGURA"]
[null,"AÑO: U.E.408 HOSPITAL DE ESPINAR - ENERO 2023",null,null,"NO REGISTRA","NO PRECEDE"]
[null,null,"SI","NO","NR","NP","TOTAL"]
["ENTRADA","PACIENTE CONFIRMA SU IDENTIDAD, EL SITIO QUIRUGICO, EL PROCEDIMIENTO Y CONSENTIMIENTO",68,null,null,null,{"$f":"SUM(C7:F7)","v":68}]
[null,"SE HA MARCADO EL SITIO QUIRURGICO",29,34,null,5,{"$f":"SUM(C8:F8)","v":68},null,{"$f":"SUM(C7,C8,C9,C10,D11,D12,C13,D14,C15)","v":476},{"$f":"I8/$I$10","v":0.78418451400329492}]
[null,"SE COMPROBO LA DISPONIBILIDAD DE LOS EQUIPOS DE ANESTESIA Y LA MEDICACION ANESTESICA",68,null,null,null,68,null,{"$f":"SUM(D7,D8,D9,D10,C11,C12,D13,C14,D15)","v":131},{"$f":"I9/$I$10","v":0.21581548599670511}]
[null,"SE COLOCO EL PULXIOMETRO AL PACIENTE Y FUNCIONA",66,2,null,null,68,null,{"$f":"SUM(I8:I9)","v":607}]
[null,"EL PACIENTE TIENE ALERGIAS",null,68,null,null,68]
[null,"VIA AEREA DIFICIL / RIESGO DE ASPIRACION",2,66,null,null,68]
[null,"HAY INSTRUMENTAL Y EQUIPO DISPONIBLE",32,36,null,null,68]
[null,"RIESGO DE HEMORRAGIA MENOR A 500 ML",17,51,null,null,68]
[null,"SE HA PREVISTO DISPONIBILIDAD DE COMPONENTE SANGUINEO EN BANCO DE SANGRE",28,40,null,null,68]
["PAUSA","CONFIRMAR QUE TODOS LOS MIEMBROS DEL EQUIPO PROGRAMADOS SE HAYAN PRESENTADO POR SU NOMBRE",68,null,null,null,68]
[null,"CONFIRMAR LA IDENTIDAD DEL PACIENTE, EL PROCEDIMIENTO Y EL SITIO QUIRUGICO",68,null,null,null,68]
[null,"CONFIRMAR SI TODOS LOS MIEMBROS DEL EQUIPO HAN CUMPLIDO CORRECTAMENTE CON EL PROTOCOLO DE AS",68,null,null,null,68]
[null,"SE HA ADMINISTRADO PROFILAXIS CON ANTIBIOTICOS EN LOS ULTIMOS 60 MINUTOS",66,1,null,1,68,null,{"$f":"SUM(C16,C17,C18,C19,C20,,C22,D23,C24,D25,C26)","v":569},{"$f":"I19/$I$21","v":0.89747634069400628}]
[null,"¿CUALES SON LOS PASOS CRITICOS O INESPERADO?",7,61,null,null,68,null,{"$f":"SUM(D16,D17,D18,D19,D20,D21,D22,C23,D24,C25,D26)","v":65},{"$f":"I20/$I$21","v":0.10252365930599369}]
[null,"¿CUANTO DURARA LA OPERACIÓN?",68,null,null,null,68,null,{"$f":"SUM(I19:I20)","v":634}]
[null,"¿CUANTO ES LA PERDIDA DE SALGRE PREVISTA?",68,null,null,null,68]
[null,"¿PRESENTA EL PACIENTE ALGUN PROBLEMA ESPECIFICO?",3,65,null,null,68]
[null,"¿SE HA CONFIRMADO LA ESTERILIDAD DE ROPA, INSTRUMENTAL Y EQUIPOS?",68,null,null,null,68]
[null,"¿HAY DUDAS O PROBLEMAS RELACIONADOS CON ELLOS?",null,68,null,null,68]
[null,"¿PUEDEN VISUALIZARSE LAS IMÁGENES DIAGNOSTICADAS ESENCIALES?",23,null,null,45,68]
["SALIDA","EL ENFERMERO CONFIRMA VERBALMENTE EL NOMBRE DEL PROCEDIMIENTO",68,null,null,null,68]
[null,"EL RECUENTO DE INSTRUMENTOS, GASA Y AGUJAS",68,null,null,null,68,null,{"$f":"SUM(C27,C28,C29,C30,C31,D32)","v":215},{"$f":"I28/$I$30","v":0.65349544072948329}]
[null,"EL ETIQUETADO DE LAS MUESTRAS (LECTURA DE LA ETIQUETA EN VOZ ALTA, INCLUIDO EL NOMBRE DEL PACIENTE",11,46,null,11,68,null,{"$f":"SUM(D27,D28,D29,D30,D31,C32)","v":114},{"$f":"I29/$I$30","v":0.34650455927051671}]
[null,"SI HAY PROBLEMAS QUE SE RESUELVE RELACIONADOS CON EL INSTRUMENTAL Y LOS EQUIPOS",null,68,null,null,68,null,{"$f":"SUM(I28:I29)","v":329}]
[null,"(CIRUJANO, ANESTESIOLOGO, ENFERMERO) CUALES SON LOS ASPECTOS CRITICOS DE LA RECUPERACION Y EL TRAMITE",68,null,null,null,68]
[null,"OBSERVACIONES",null,null,68,null,68]
["FIRMA","FIRMA DEL CIRUJANO",68,null,null,null,68]
[null,"FIRMA DEL ANESTESIOLOGO",68,null,null,null,68]
[null,"FIRMA DE LA ENFERMERA",68,null,null,null,68,null,{"$f":"SUM(C33,C34,C35,C36,C37,C38,C39)","v":447},{"$f":"I35/$I$37","v":0.93907563025210083}]
[null,"FIRMA DEL COORDINADOR",39,29,null,null,68,null,{"$f":"SUM(D33,D34,D35,D36,D37,,D38,D39)","v":29},{"$f":"I36/$I$37","v":6.0924369747899158E-2}]
[null,"NRO DE HISTORIA CLINICA",68,null,null,null,68,null,{"$f":"SUM(I35:I36)","v":476}]
[null,"NOMBRE Y APELLIDOS DEL PACIENTE",68,null,null,null,68]
[null,"FECHA",68,null,null,null,68]
[]
[]
[]
[]
[]
[null,"PORCENTAJE DE CUMPLIMIENTO DE LA LISTA DE VERIFICACION DE CIRUGIA SEGURA"]
[]
[]
[]
[]
[]
[null,null,"ENTRADA","(+)",{"$f":"J8","v":0.78418451400329492}]
[null,null,null,"(-)",{"$f":"J9","v":0.21581548599670511}]
[null,null,"PAUSA","(+)",{"$f":"J19","v":0.89747634069400628},null,null,null,null,null,null,null,"Cumplimiento"]
[null,null,null,"(-)",{"$f":"J20","v":0.10252365930599369},null,null,null,null,null,null,"Entrada",{"$f":"E51","v":0.78418451400329492}]
[null,null,"SALIDA","(+)",{"$f":"J28","v":0.65349544072948329},null,null,null,null,null,null,"Pausa",{"$f":"E53","v":0.89747634069400628}]
[null,null,null,"(-)",{"$f":"J29","v":0.34650455927051671},null,null,null,null,null,null,"Salida",{"$f":"E55","v":0.65349544072948329}]
[null,null,"FIRMA","(+)",{"$f":"J35","v":0.93907563025210083},null,null,null,null,null,null,"Firmas",{"$f":"E57","v":0.93907563025210083}]
[null,null,null,"(-)",{"$f":"J36","v":6.0924369747899158E-2},null,null,null,null,null,null,"Cumplimiento",{"$f":"AVERAGE(M54:M57)","v":0.81855798141972147}]
[null,null,"CUMPLIMIENTO",null,{"$f":"M58","v":0.81855798141972147}]

{"sheet":"MARZO","index":2,"n_rows":59,"n_cols":13,"rows_kept":59,"cut":false,"hidden":false,"merged":[[54,2,55,2],[56,2,57,2],[58,2,58,3],[6,0,14,0],[15,0,25,0],[26,0,31,0],[32,0,38,0],[50,2,51,2],[52,2,53,2]]}
[]
[]
[]
[null,"REGISTRO DE LA LISTA DE VERIFICACION DE CIRUGIA SEGURA"]
[null,"AÑO: U.E.408 HOSPITAL DE ESPINAR -MARZO  2023",null,null,"NO REGISTRA","NO PRECEDE"]
[null,null,"SI","NO","NR","NP","TOTAL"]
["ENTRADA","PACIENTE CONFIRMA SU IDENTIDAD, EL SITIO QUIRUGICO, EL PROCEDIMIENTO Y CONSENTIMIENTO",82,null,null,null,{"$f":"SUM(C7:F7)","v":82}]
[null,"SE HA MARCADO EL SITIO QUIRURGICO",60,20,null,2,{"$f":"SUM(C8:F8)","v":82},null,{"$f":"SUM(C7,C8,C9,C10,D11,D12,C13,D14,C15)","v":559},{"$f":"I8/$I$10","v":0.87071651090342683}]
[null,"SE COMPROBO LA DISPONIBILIDAD DE LOS EQUIPOS DE ANESTESIA Y LA MEDICACION ANESTESICA",82,null,null,null,82,null,{"$f":"SUM(D7,D8,D9,D10,C11,C12,D13,C14,D15)","v":83},{"$f":"I9/$I$10","v":0.1292834890965732}]
[null,"SE COLOCO EL PULXIOMETRO AL PACIENTE Y FUNCIONA",79,3,null,null,82,null,{"$f":"SUM(I8:I9)","v":642}]
[null,"EL PACIENTE TIENE ALERGIAS",1,80,1,null,82]
[null,"VIA AEREA DIFICIL / RIESGO DE ASPIRACION",4,77,1,null,82]
[null,"HAY INSTRUMENTAL Y EQUIPO DISPONIBLE",23,13,46,null,82]
[null,"RIESGO DE HEMORRAGIA MENOR A 500 ML",14,62,6,null,82]
[null,"SE HA PREVISTO DISPONIBILIDAD DE COMPONENTE SANGUINEO EN BANCO DE SANGRE",14,28,40,null,82]
["PAUSA","CONFIRMAR QUE TODOS LOS MIEMBROS DEL EQUIPO PROGRAMADOS SE HAYAN PRESENTADO POR SU NOMBRE",81,null,1,null,82]
[null,"CONFIRMAR LA IDENTIDAD DEL PACIENTE, EL PROCEDIMIENTO Y EL SITIO QUIRUGICO",81,null,1,null,82]
[null,"CONFIRMAR SI TODOS LOS MIEMBROS DEL EQUIPO HAN CUMPLIDO CORRECTAMENTE CON EL PROTOCOLO DE AS",81,null,1,null,82]
[null,"SE HA ADMINISTRADO PROFILAXIS CON ANTIBIOTICOS EN LOS ULTIMOS 60 MINUTOS",81,null,1,null,82,null,{"$f":"SUM(C16,C17,C18,C19,C20,,C22,D23,C24,D25,C26)","v":747},{"$f":"I19/$I$21","v":0.99071618037135278}]
[null,"¿CUALES SON LOS PASOS CRITICOS O INESPERADO?",81,null,1,null,82,null,{"$f":"SUM(D16,D17,D18,D19,D20,D21,D22,C23,D24,C25,D26)","v":7},{"$f":"I20/$I$21","v":9.2838196286472146E-3}]
[null,"¿CUANTO DURARA LA OPERACIÓN?",81,null,1,null,82,null,{"$f":"SUM(I19:I20)","v":754}]
[null,"¿CUANTO ES LA PERDIDA DE SALGRE PREVISTA?",81,null,1,null,82]
[null,"¿PRESENTA EL PACIENTE ALGUN PROBLEMA ESPECIFICO?",2,77,3,null,82]
[null,"¿SE HA CONFIRMADO LA ESTERILIDAD DE ROPA, INSTRUMENTAL Y EQUIPOS?",78,2,2,null,82]
[null,"¿HAY DUDAS O PROBLEMAS RELACIONADOS CON ELLOS?",1,77,4,null,82]
[null,"¿PUEDEN VISUALIZARSE LAS IMÁGENES DIAGNOSTICADAS ESENCIALES?",29,2,4,47,82]
["SALIDA","EL ENFERMERO CONFIRMA VERBALMENTE EL NOMBRE DEL PROCEDIMIENTO",81,null,1,null,82]
[null,"EL RECUENTO DE INSTRUMENTOS, GASA Y AGUJAS",81,null,1,null,82,null,{"$f":"SUM(C27,C28,C29,C30,C31,D32)","v":257},{"$f":"I28/$I$30","v":0.65728900255754474}]
[null,"EL ETIQUETADO DE LAS MUESTRAS (LECTURA DE LA ETIQUETA EN VOZ ALTA, INCLUIDO EL NOMBRE DEL PACIENTE",14,54,5,9,82,null,{"$f":"SUM(D27,D28,D29,D30,D31,C32)","v":134},{"$f":"I29/$I$30","v":0.34271099744245526}]
[null,"SI HAY PROBLEMAS QUE SE RESUELVE RELACIONADOS CON EL INSTRUMENTAL Y LOS EQUIPOS",null,80,2,null,82,null,{"$f":"SUM(I28:I29)","v":391}]
[null,"(CIRUJANO, ANESTESIOLOGO, ENFERMERO) CUALES SON LOS ASPECTOS CRITICOS DE LA RECUPERACION Y EL TRAMITE",81,null,1,null,82]
[null,"OBSERVACIONES",null,null,82,null,82]
["FIRMA","FIRMA DEL CIRUJANO",78,4,null,null,82]
[null,"FIRMA DEL ANESTESIOLOGO",80,2,null,null,82]
[null,"FIRMA DE LA ENFERMERA",82,null,null,null,82,null,{"$f":"SUM(C33,C34,C35,C36,C37,C38,C39)","v":547},{"$f":"I35/$I$37","v":0.95296167247386765}]
[null,"FIRMA DEL COORDINADOR",61,21,null,null,82,null,{"$f":"SUM(D33,D34,D35,D36,D37,,D38,D39)","v":27},{"$f":"I36/$I$37","v":4.7038327526132406E-2}]
[null,"NRO DE HISTORIA CLINICA",82,null,null,null,82,null,{"$f":"SUM(I35:I36)","v":574}]
[null,"NOMBRE Y APELLIDOS DEL PACIENTE",82,null,null,null,82]
[null,"FECHA",82,null,null,null,82]
[]
[]
[]
[]
[]
[null,"PORCENTAJE DE CUMPLIMIENTO DE LA LISTA DE VERIFICACION DE CIRUGIA SEGURA"]
[]
[]
[]
[]
[]
[null,null,"ENTRADA","(+)",{"$f":"J8","v":0.87071651090342683}]
[null,null,null,"(-)",{"$f":"J9","v":0.1292834890965732}]
[null,null,"PAUSA","(+)",{"$f":"J19","v":0.99071618037135278},null,null,null,null,null,null,null,"Cumplimiento"]
[null,null,null,"(-)",{"$f":"J20","v":9.2838196286472146E-3},null,null,null,null,null,null,"Entrada",{"$f":"E51","v":0.87071651090342683}]
[null,null,"SALIDA","(+)",{"$f":"J28","v":0.65728900255754474},null,null,null,null,null,null,"Pausa",{"$f":"E53","v":0.99071618037135278}]
[null,null,null,"(-)",{"$f":"J29","v":0.34271099744245526},null,null,null,null,null,null,"Salida",{"$f":"E55","v":0.65728900255754474}]
[null,null,"FIRMA","(+)",{"$f":"J35","v":0.95296167247386765},null,null,null,null,null,null,"Firmas",{"$f":"E57","v":0.95296167247386765}]
[null,null,null,"(-)",{"$f":"J36","v":4.7038327526132406E-2},null,null,null,null,null,null,"Cumplimiento",{"$f":"AVERAGE(M54:M57)","v":0.86792084157654803}]
[null,null,"CUMPLIMIENTO",null,{"$f":"M58","v":0.86792084157654803}]

{"sheet":"I TRIMESTRE 2023","index":3,"n_rows":59,"n_cols":13,"rows_kept":59,"cut":false,"hidden":false,"merged":[[58,2,58,3],[6,0,14,0],[15,0,25,0],[26,0,31,0],[32,0,38,0],[50,2,51,2],[52,2,53,2],[54,2,55,2],[56,2,57,2]]}
[]
[]
[]
[null,"REGISTRO DE LA LISTA DE VERIFICACION DE CIRUGIA SEGURA"]
[null,"AÑO: U.E.408 HOSPITAL DE ESPINAR -MARZO  2023",null,null,"NO REGISTRA","NO PRECEDE"]
[null,null,"SI","NO","NR","NP","TOTAL"]
["ENTRADA","PACIENTE CONFIRMA SU IDENTIDAD, EL SITIO QUIRUGICO, EL PROCEDIMIENTO Y CONSENTIMIENTO",{"$f":"+MARZO!C7+FEBRERO!C7+ENERO!C7","v":219},{"$f":"+MARZO!D7+FEBRERO!D7+ENERO!D7","v":0},{"$f":"+MARZO!E7+FEBRERO!E7+ENERO!E7","v":0},{"$f":"+MARZO!F7+FEBRERO!F7+ENERO!F7","v":0},{"$f":"SUM(C7:F7)","v":219}]
[null,"SE HA MARCADO EL SITIO QUIRURGICO",{"$f":"+MARZO!C8+FEBRERO!C8+ENERO!C8","v":146},{"$f":"+MARZO!D8+FEBRERO!D8+ENERO!D8","v":66},{"$f":"+MARZO!E8+FEBRERO!E8+ENERO!E8","v":0},{"$f":"+MARZO!F8+FEBRERO!F8+ENERO!F8","v":7},{"$f":"SUM(C8:F8)","v":219},null,{"$f":"SUM(C7,C8,C9,C10,D11,D12,C13,D14,C15)","v":1558},{"$f":"I8/$I$10","v":0.83763440860215055}]
[null,"SE COMPROBO LA DISPONIBILIDAD DE LOS EQUIPOS DE ANESTESIA Y LA MEDICACION ANESTESICA",{"$f":"+MARZO!C9+FEBRERO!C9+ENERO!C9","v":218},{"$f":"+MARZO!D9+FEBRERO!D9+ENERO!D9","v":1},{"$f":"+MARZO!E9+FEBRERO!E9+ENERO!E9","v":0},{"$f":"+MARZO!F9+FEBRERO!F9+ENERO!F9","v":0},219,null,{"$f":"SUM(D7,D8,D9,D10,C11,C12,D13,C14,D15)","v":302},{"$f":"I9/$I$10","v":0.16236559139784945}]
[null,"SE COLOCO EL PULXIOMETRO AL PACIENTE Y FUNCIONA",{"$f":"+MARZO!C10+FEBRERO!C10+ENERO!C10","v":213},{"$f":"+MARZO!D10+FEBRERO!D10+ENERO!D10","v":6},{"$f":"+MARZO!E10+FEBRERO!E10+ENERO!E10","v":0},{"$f":"+MARZO!F10+FEBRERO!F10+ENERO!F10","v":0},219,null,{"$f":"SUM(I8:I9)","v":1860}]
[null,"EL PACIENTE TIENE ALERGIAS",{"$f":"+MARZO!C11+FEBRERO!C11+ENERO!C11","v":4},{"$f":"+MARZO!D11+FEBRERO!D11+ENERO!D11","v":214},{"$f":"+MARZO!E11+FEBRERO!E11+ENERO!E11","v":1},{"$f":"+MARZO!F11+FEBRERO!F11+ENERO!F11","v":0},219]
[null,"VIA AEREA DIFICIL / RIESGO DE ASPIRACION",{"$f":"+MARZO!C12+FEBRERO!C12+ENERO!C12","v":9},{"$f":"+MARZO!D12+FEBRERO!D12+ENERO!D12","v":209},{"$f":"+MARZO!E12+FEBRERO!E12+ENERO!E12","v":1},{"$f":"+MARZO!F12+FEBRERO!F12+ENERO!F12","v":0},219]
[null,"HAY INSTRUMENTAL Y EQUIPO DISPONIBLE",{"$f":"+MARZO!C13+FEBRERO!C13+ENERO!C13","v":93},{"$f":"+MARZO!D13+FEBRERO!D13+ENERO!D13","v":77},{"$f":"+MARZO!E13+FEBRERO!E13+ENERO!E13","v":49},{"$f":"+MARZO!F13+FEBRERO!F13+ENERO!F13","v":0},219]
[null,"RIESGO DE HEMORRAGIA MENOR A 500 ML",{"$f":"+MARZO!C14+FEBRERO!C14+ENERO!C14","v":42},{"$f":"+MARZO!D14+FEBRERO!D14+ENERO!D14","v":165},{"$f":"+MARZO!E14+FEBRERO!E14+ENERO!E14","v":12},{"$f":"+MARZO!F14+FEBRERO!F14+ENERO!F14","v":0},219]
[null,"SE HA PREVISTO DISPONIBILIDAD DE COMPONENTE SANGUINEO EN BANCO DE SANGRE",{"$f":"+MARZO!C15+FEBRERO!C15+ENERO!C15","v":81},{"$f":"+MARZO!D15+FEBRERO!D15+ENERO!D15","v":97},{"$f":"+MARZO!E15+FEBRERO!E15+ENERO!E15","v":41},{"$f":"+MARZO!F15+FEBRERO!F15+ENERO!F15","v":0},219]
["PAUSA","CONFIRMAR QUE TODOS LOS MIEMBROS DEL EQUIPO PROGRAMADOS SE HAYAN PRESENTADO POR SU NOMBRE",{"$f":"+MARZO!C16+FEBRERO!C16+ENERO!C16","v":218},{"$f":"+MARZO!D16+FEBRERO!D16+ENERO!D16","v":0},{"$f":"+MARZO!E16+FEBRERO!E16+ENERO!E16","v":1},{"$f":"+MARZO!F16+FEBRERO!F16+ENERO!F16","v":0},219]
[null,"CONFIRMAR LA IDENTIDAD DEL PACIENTE, EL PROCEDIMIENTO Y EL SITIO QUIRUGICO",{"$f":"+MARZO!C17+FEBRERO!C17+ENERO!C17","v":218},{"$f":"+MARZO!D17+FEBRERO!D17+ENERO!D17","v":0},{"$f":"+MARZO!E17+FEBRERO!E17+ENERO!E17","v":1},{"$f":"+MARZO!F17+FEBRERO!F17+ENERO!F17","v":0},219]
[null,"CONFIRMAR SI TODOS LOS MIEMBROS DEL EQUIPO HAN CUMPLIDO CORRECTAMENTE CON EL PROTOCOLO DE AS",{"$f":"+MARZO!C18+FEBRERO!C18+ENERO!C18","v":218},{"$f":"+MARZO!D18+FEBRERO!D18+ENERO!D18","v":0},{"$f":"+MARZO!E18+FEBRERO!E18+ENERO!E18","v":1},{"$f":"+MARZO!F18+FEBRERO!F18+ENERO!F18","v":0},219]
[null,"SE HA ADMINISTRADO PROFILAXIS CON ANTIBIOTICOS EN LOS ULTIMOS 60 MINUTOS",{"$f":"+MARZO!C19+FEBRERO!C19+ENERO!C19","v":209},{"$f":"+MARZO!D19+FEBRERO!D19+ENERO!D19","v":7},{"$f":"+MARZO!E19+FEBRERO!E19+ENERO!E19","v":1},{"$f":"+MARZO!F19+FEBRERO!F19+ENERO!F19","v":2},219,null,{"$f":"SUM(C16,C17,C18,C19,C20,,C22,D23,C24,D25,C26)","v":1869},{"$f":"I19/$I$21","v":0.92846497764530556}]
[null,"¿CUALES SON LOS PASOS CRITICOS O INESPERADO?",{"$f":"+MARZO!C20+FEBRERO!C20+ENERO!C20","v":95},{"$f":"+MARZO!D20+FEBRERO!D20+ENERO!D20","v":118},{"$f":"+MARZO!E20+FEBRERO!E20+ENERO!E20","v":6},{"$f":"+MARZO!F20+FEBRERO!F20+ENERO!F20","v":0},219,null,{"$f":"SUM(D16,D17,D18,D19,D20,D21,D22,C23,D24,C25,D26)","v":144},{"$f":"I20/$I$21","v":7.1535022354694486E-2}]
[null,"¿CUANTO DURARA LA OPERACIÓN?",{"$f":"+MARZO!C21+FEBRERO!C21+ENERO!C21","v":216},{"$f":"+MARZO!D21+FEBRERO!D21+ENERO!D21","v":1},{"$f":"+MARZO!E21+FEBRERO!E21+ENERO!E21","v":2},{"$f":"+MARZO!F21+FEBRERO!F21+ENERO!F21","v":0},219,null,{"$f":"SUM(I19:I20)","v":2013}]
[null,"¿CUANTO ES LA PERDIDA DE SALGRE PREVISTA?",{"$f":"+MARZO!C22+FEBRERO!C22+ENERO!C22","v":209},{"$f":"+MARZO!D22+FEBRERO!D22+ENERO!D22","v":5},{"$f":"+MARZO!E22+FEBRERO!E22+ENERO!E22","v":5},{"$f":"+MARZO!F22+FEBRERO!F22+ENERO!F22","v":0},219]
[null,"¿PRESENTA EL PACIENTE ALGUN PROBLEMA ESPECIFICO?",{"$f":"+MARZO!C23+FEBRERO!C23+ENERO!C23","v":8},{"$f":"+MARZO!D23+FEBRERO!D23+ENERO!D23","v":208},{"$f":"+MARZO!E23+FEBRERO!E23+ENERO!E23","v":3},{"$f":"+MARZO!F23+FEBRERO!F23+ENERO!F23","v":0},219]
[null,"¿SE HA CONFIRMADO LA ESTERILIDAD DE ROPA, INSTRUMENTAL Y EQUIPOS?",{"$f":"+MARZO!C24+FEBRERO!C24+ENERO!C24","v":215},{"$f":"+MARZO!D24+FEBRERO!D24+ENERO!D24","v":2},{"$f":"+MARZO!E24+FEBRERO!E24+ENERO!E24","v":2},{"$f":"+MARZO!F24+FEBRERO!F24+ENERO!F24","v":0},219]
[null,"¿HAY DUDAS O PROBLEMAS RELACIONADOS CON ELLOS?",{"$f":"+MARZO!C25+FEBRERO!C25+ENERO!C25","v":1},{"$f":"+MARZO!D25+FEBRERO!D25+ENERO!D25","v":214},{"$f":"+MARZO!E25+FEBRERO!E25+ENERO!E25","v":4},{"$f":"+MARZO!F25+FEBRERO!F25+ENERO!F25","v":0},219]
[null,"¿PUEDEN VISUALIZARSE LAS IMÁGENES DIAGNOSTICADAS ESENCIALES?",{"$f":"+MARZO!C26+FEBRERO!C26+ENERO!C26","v":65},{"$f":"+MARZO!D26+FEBRERO!D26+ENERO!D26","v":2},{"$f":"+MARZO!E26+FEBRERO!E26+ENERO!E26","v":4},{"$f":"+MARZO!F26+FEBRERO!F26+ENERO!F26","v":148},219]
["SALIDA","EL ENFERMERO CONFIRMA VERBALMENTE EL NOMBRE DEL PROCEDIMIENTO",{"$f":"+MARZO!C27+FEBRERO!C27+ENERO!C27","v":218},{"$f":"+MARZO!D27+FEBRERO!D27+ENERO!D27","v":0},{"$f":"+MARZO!E27+FEBRERO!E27+ENERO!E27","v":1},{"$f":"+MARZO!F27+FEBRERO!F27+ENERO!F27","v":0},219]
[null,"EL RECUENTO DE INSTRUMENTOS, GASA Y AGUJAS",{"$f":"+MARZO!C28+FEBRERO!C28+ENERO!C28","v":218},{"$f":"+MARZO!D28+FEBRERO!D28+ENERO!D28","v":0},{"$f":"+MARZO!E28+FEBRERO!E28+ENERO!E28","v":1},{"$f":"+MARZO!F28+FEBRERO!F28+ENERO!F28","v":0},219,null,{"$f":"SUM(C27,C28,C29,C30,C31,D32)","v":687},{"$f":"I28/$I$30","v":0.66184971098265899}]
[null,"EL ETIQUETADO DE LAS MUESTRAS (LECTURA DE LA ETIQUETA EN VOZ ALTA, INCLUIDO EL NOMBRE DEL PACIENTE",{"$f":"+MARZO!C29+FEBRERO!C29+ENERO!C29","v":33},{"$f":"+MARZO!D29+FEBRERO!D29+ENERO!D29","v":135},{"$f":"+MARZO!E29+FEBRERO!E29+ENERO!E29","v":8},{"$f":"+MARZO!F29+FEBRERO!F29+ENERO!F29","v":43},219,null,{"$f":"SUM(D27,D28,D29,D30,D31,C32)","v":351},{"$f":"I29/$I$30","v":0.33815028901734107}]
[null,"SI HAY PROBLEMAS QUE SE RESUELVE RELACIONADOS CON EL INSTRUMENTAL Y LOS EQUIPOS",{"$f":"+MARZO!C30+FEBRERO!C30+ENERO!C30","v":1},{"$f":"+MARZO!D30+FEBRERO!D30+ENERO!D30","v":216},{"$f":"+MARZO!E30+FEBRERO!E30+ENERO!E30","v":2},{"$f":"+MARZO!F30+FEBRERO!F30+ENERO!F30","v":0},219,null,{"$f":"SUM(I28:I29)","v":1038}]
[null,"(CIRUJANO, ANESTESIOLOGO, ENFERMERO) CUALES SON LOS ASPECTOS CRITICOS DE LA RECUPERACION Y EL TRAMITE",{"$f":"+MARZO!C31+FEBRERO!C31+ENERO!C31","v":217},{"$f":"+MARZO!D31+FEBRERO!D31+ENERO!D31","v":0},{"$f":"+MARZO!E31+FEBRERO!E31+ENERO!E31","v":2},{"$f":"+MARZO!F31+FEBRERO!F31+ENERO!F31","v":0},219]
[null,"OBSERVACIONES",{"$f":"+MARZO!C32+FEBRERO!C32+ENERO!C32","v":0},{"$f":"+MARZO!D32+FEBRERO!D32+ENERO!D32","v":0},{"$f":"+MARZO!E32+FEBRERO!E32+ENERO!E32","v":219},{"$f":"+MARZO!F32+FEBRERO!F32+ENERO!F32","v":0},219]
["FIRMA","FIRMA DEL CIRUJANO",{"$f":"+MARZO!C33+FEBRERO!C33+ENERO!C33","v":215},{"$f":"+MARZO!D33+FEBRERO!D33+ENERO!D33","v":4},{"$f":"+MARZO!E33+FEBRERO!E33+ENERO!E33","v":0},{"$f":"+MARZO!F33+FEBRERO!F33+ENERO!F33","v":0},219]
[null,"FIRMA DEL ANESTESIOLOGO",{"$f":"+MARZO!C34+FEBRERO!C34+ENERO!C34","v":217},{"$f":"+MARZO!D34+FEBRERO!D34+ENERO!D34","v":2},{"$f":"+MARZO!E34+FEBRERO!E34+ENERO!E34","v":0},{"$f":"+MARZO!F34+FEBRERO!F34+ENERO!F34","v":0},219]
[null,"FIRMA DE LA ENFERMERA",{"$f":"+MARZO!C35+FEBRERO!C35+ENERO!C35","v":219},{"$f":"+MARZO!D35+FEBRERO!D35+ENERO!D35","v":0},{"$f":"+MARZO!E35+FEBRERO!E35+ENERO!E35","v":0},{"$f":"+MARZO!F35+FEBRERO!F35+ENERO!F35","v":0},219,null,{"$f":"SUM(C33,C34,C35,C36,C37,C38,C39)","v":1407},{"$f":"I35/$I$37","v":0.9178082191780822}]
[null,"FIRMA DEL COORDINADOR",{"$f":"+MARZO!C36+FEBRERO!C36+ENERO!C36","v":100},{"$f":"+MARZO!D36+FEBRERO!D36+ENERO!D36","v":119},{"$f":"+MARZO!E36+FEBRERO!E36+ENERO!E36","v":0},{"$f":"+MARZO!F36+FEBRERO!F36+ENERO!F36","v":0},219,null,{"$f":"SUM(D33,D34,D35,D36,D37,,D38,D39)","v":126},{"$f":"I36/$I$37","v":8.2191780821917804E-2}]
[null,"NRO DE HISTORIA CLINICA",{"$f":"+MARZO!C37+FEBRERO!C37+ENERO!C37","v":218},{"$f":"+MARZO!D37+FEBRERO!D37+ENERO!D37","v":1},{"$f":"+MARZO!E37+FEBRERO!E37+ENERO!E37","v":0},{"$f":"+MARZO!F37+FEBRERO!F37+ENERO!F37","v":0},219,null,{"$f":"SUM(I35:I36)","v":1533}]
[null,"NOMBRE Y APELLIDOS DEL PACIENTE",{"$f":"+MARZO!C38+FEBRERO!C38+ENERO!C38","v":219},{"$f":"+MARZO!D38+FEBRERO!D38+ENERO!D38","v":0},{"$f":"+MARZO!E38+FEBRERO!E38+ENERO!E38","v":0},{"$f":"+MARZO!F38+FEBRERO!F38+ENERO!F38","v":0},219]
[null,"FECHA",{"$f":"+MARZO!C39+FEBRERO!C39+ENERO!C39","v":219},{"$f":"+MARZO!D39+FEBRERO!D39+ENERO!D39","v":0},{"$f":"+MARZO!E39+FEBRERO!E39+ENERO!E39","v":0},{"$f":"+MARZO!F39+FEBRERO!F39+ENERO!F39","v":0},219]
[]
[]
[]
[]
[]
[null,"PORCENTAJE DE CUMPLIMIENTO DE LA LISTA DE VERIFICACION DE CIRUGIA SEGURA"]
[]
[]
[]
[]
[]
[null,null,"ENTRADA","(+)",{"$f":"J8","v":0.83763440860215055}]
[null,null,null,"(-)",{"$f":"J9","v":0.16236559139784945}]
[null,null,"PAUSA","(+)",{"$f":"J19","v":0.92846497764530556},null,null,null,null,null,null,null,"Cumplimiento"]
[null,null,null,"(-)",{"$f":"J20","v":7.1535022354694486E-2},null,null,null,null,null,null,"Entrada",{"$f":"E51","v":0.83763440860215055}]
[null,null,"SALIDA","(+)",{"$f":"J28","v":0.66184971098265899},null,null,null,null,null,null,"Pausa",{"$f":"E53","v":0.92846497764530556}]
[null,null,null,"(-)",{"$f":"J29","v":0.33815028901734107},null,null,null,null,null,null,"Salida",{"$f":"E55","v":0.66184971098265899}]
[null,null,"FIRMA","(+)",{"$f":"J35","v":0.9178082191780822},null,null,null,null,null,null,"Firmas",{"$f":"E57","v":0.9178082191780822}]
[null,null,null,"(-)",{"$f":"J36","v":8.2191780821917804E-2},null,null,null,null,null,null,"Cumplimiento",{"$f":"AVERAGE(M54:M57)","v":0.83643932910204932}]
[null,null,"CUMPLIMIENTO",null,{"$f":"M58","v":0.83643932910204932}]

{"sheet":"ABRIL","index":4,"n_rows":59,"n_cols":13,"rows_kept":59,"cut":false,"hidden":false,"merged":[[58,2,58,3],[6,0,14,0],[15,0,25,0],[26,0,31,0],[32,0,38,0],[50,2,51,2],[52,2,53,2],[54,2,55,2],[56,2,57,2]]}
[]
[]
[]
[null,"REGISTRO DE LA LISTA DE VERIFICACION DE CIRUGIA SEGURA"]
[null,"AÑO: U.E.408 HOSPITAL DE ESPINAR -ABRIL  2022",null,null,"NO REGISTRA","NO PRECEDE"]
[null,null,"SI","NO","NR","NP","TOTAL"]
["ENTRADA","PACIENTE CONFIRMA SU IDENTIDAD, EL SITIO QUIRUGICO, EL PROCEDIMIENTO Y CONSENTIMIENTO",null,null,null,null,{"$f":"SUM(C7:F7)","v":0}]
[null,"SE HA MARCADO EL SITIO QUIRURGICO",null,null,null,null,{"$f":"SUM(C8:F8)","v":0},null,{"$f":"SUM(C7,C8,C9,C10,D11,D12,C13,D14,C15)","v":0},{"$f":"I8/$I$10","v":{"$error":"#DIV/0!"}}]
[null,"SE COMPROBO LA DISPONIBILIDAD DE LOS EQUIPOS DE ANESTESIA Y LA MEDICACION ANESTESICA",null,null,null,null,0,null,{"$f":"SUM(D7,D8,D9,D10,C11,C12,D13,C14,D15)","v":0},{"$f":"I9/$I$10","v":{"$error":"#DIV/0!"}}]
[null,"SE COLOCO EL PULXIOMETRO AL PACIENTE Y FUNCIONA",null,null,null,null,0,null,{"$f":"SUM(I8:I9)","v":0}]
[null,"EL PACIENTE TIENE ALERGIAS",null,null,null,null,0]
[null,"VIA AEREA DIFICIL / RIESGO DE ASPIRACION",null,null,null,null,0]
[null,"HAY INSTRUMENTAL Y EQUIPO DISPONIBLE",null,null,null,null,0]
[null,"RIESGO DE HEMORRAGIA MENOR A 500 ML",null,null,null,null,0]
[null,"SE HA PREVISTO DISPONIBILIDAD DE COMPONENTE SANGUINEO EN BANCO DE SANGRE",null,null,null,null,0]
["PAUSA","CONFIRMAR QUE TODOS LOS MIEMBROS DEL EQUIPO PROGRAMADOS SE HAYAN PRESENTADO POR SU NOMBRE",null,null,null,null,0]
[null,"CONFIRMAR LA IDENTIDAD DEL PACIENTE, EL PROCEDIMIENTO Y EL SITIO QUIRUGICO",null,null,null,null,0]
[null,"CONFIRMAR SI TODOS LOS MIEMBROS DEL EQUIPO HAN CUMPLIDO CORRECTAMENTE CON EL PROTOCOLO DE AS",null,null,null,null,0]
[null,"SE HA ADMINISTRADO PROFILAXIS CON ANTIBIOTICOS EN LOS ULTIMOS 60 MINUTOS",null,null,null,null,0,null,{"$f":"SUM(C16,C17,C18,C19,C20,,C22,D23,C24,D25,C26)","v":0},{"$f":"I19/$I$21","v":{"$error":"#DIV/0!"}}]
[null,"¿CUALES SON LOS PASOS CRITICOS O INESPERADO?",null,null,null,null,0,null,{"$f":"SUM(D16,D17,D18,D19,D20,D21,D22,C23,D24,C25,D26)","v":0},{"$f":"I20/$I$21","v":{"$error":"#DIV/0!"}}]
[null,"¿CUANTO DURARA LA OPERACIÓN?",null,null,null,null,0,null,{"$f":"SUM(I19:I20)","v":0}]
[null,"¿CUANTO ES LA PERDIDA DE SALGRE PREVISTA?",null,null,null,null,0]
[null,"¿PRESENTA EL PACIENTE ALGUN PROBLEMA ESPECIFICO?",null,null,null,null,0]
[null,"¿SE HA CONFIRMADO LA ESTERILIDAD DE ROPA, INSTRUMENTAL Y EQUIPOS?",null,null,null,null,0]
[null,"¿HAY DUDAS O PROBLEMAS RELACIONADOS CON ELLOS?",null,null,null,null,0]
[null,"¿PUEDEN VISUALIZARSE LAS IMÁGENES DIAGNOSTICADAS ESENCIALES?",null,null,null,null,0]
["SALIDA","EL ENFERMERO CONFIRMA VERBALMENTE EL NOMBRE DEL PROCEDIMIENTO",null,null,null,null,0]
[null,"EL RECUENTO DE INSTRUMENTOS, GASA Y AGUJAS",null,null,null,null,0,null,{"$f":"SUM(C27,C28,C29,C30,C31,D32)","v":0},{"$f":"I28/$I$30","v":{"$error":"#DIV/0!"}}]
[null,"EL ETIQUETADO DE LAS MUESTRAS (LECTURA DE LA ETIQUETA EN VOZ ALTA, INCLUIDO EL NOMBRE DEL PACIENTE",null,null,null,null,0,null,{"$f":"SUM(D27,D28,D29,D30,D31,C32)","v":0},{"$f":"I29/$I$30","v":{"$error":"#DIV/0!"}}]
[null,"SI HAY PROBLEMAS QUE SE RESUELVE RELACIONADOS CON EL INSTRUMENTAL Y LOS EQUIPOS",null,null,null,null,0,null,{"$f":"SUM(I28:I29)","v":0}]
[null,"(CIRUJANO, ANESTESIOLOGO, ENFERMERO) CUALES SON LOS ASPECTOS CRITICOS DE LA RECUPERACION Y EL TRAMITE",null,null,null,null,0]
[null,"OBSERVACIONES",null,null,null,null,0]
["FIRMA","FIRMA DEL CIRUJANO",null,null,null,null,0]
[null,"FIRMA DEL ANESTESIOLOGO",null,null,null,null,0]
[null,"FIRMA DE LA ENFERMERA",null,null,null,null,0,null,{"$f":"SUM(C33,C34,C35,C36,C37,C38,C39)","v":0},{"$f":"I35/$I$37","v":{"$error":"#DIV/0!"}}]
[null,"FIRMA DEL COORDINADOR",null,null,null,null,0,null,{"$f":"SUM(D33,D34,D35,D36,D37,,D38,D39)","v":0},{"$f":"I36/$I$37","v":{"$error":"#DIV/0!"}}]
[null,"NRO DE HISTORIA CLINICA",null,null,null,null,0,null,{"$f":"SUM(I35:I36)","v":0}]
[null,"NOMBRE Y APELLIDOS DEL PACIENTE",null,null,null,null,0]
[null,"FECHA",null,null,null,null,0]
[]
[]
[]
[]
[]
[null,"PORCENTAJE DE CUMPLIMIENTO DE LA LISTA DE VERIFICACION DE CIRUGIA SEGURA"]
[]
[]
[]
[]
[]
[null,null,"ENTRADA","(+)",{"$f":"J8","v":{"$error":"#DIV/0!"}}]
[null,null,null,"(-)",{"$f":"J9","v":{"$error":"#DIV/0!"}}]
[null,null,"PAUSA","(+)",{"$f":"J19","v":{"$error":"#DIV/0!"}},null,null,null,null,null,null,null,"Cumplimiento"]
[null,null,null,"(-)",{"$f":"J20","v":{"$error":"#DIV/0!"}},null,null,null,null,null,null,"Entrada",{"$f":"E51","v":{"$error":"#DIV/0!"}}]
[null,null,"SALIDA","(+)",{"$f":"J28","v":{"$error":"#DIV/0!"}},null,null,null,null,null,null,"Pausa",{"$f":"E53","v":{"$error":"#DIV/0!"}}]
[null,null,null,"(-)",{"$f":"J29","v":{"$error":"#DIV/0!"}},null,null,null,null,null,null,"Salida",{"$f":"E55","v":{"$error":"#DIV/0!"}}]
[null,null,"FIRMA","(+)",{"$f":"J35","v":{"$error":"#DIV/0!"}},null,null,null,null,null,null,"Firmas",{"$f":"E57","v":{"$error":"#DIV/0!"}}]
[null,null,null,"(-)",{"$f":"J36","v":{"$error":"#DIV/0!"}},null,null,null,null,null,null,"Cumplimiento",{"$f":"AVERAGE(M54:M57)","v":{"$error":"#DIV/0!"}}]
[null,null,"CUMPLIMIENTO",null,{"$f":"M58","v":{"$error":"#DIV/0!"}}]

{"sheet":"MAYO","index":5,"n_rows":59,"n_cols":13,"rows_kept":59,"cut":false,"hidden":false,"merged":[[58,2,58,3],[6,0,14,0],[15,0,25,0],[26,0,31,0],[32,0,38,0],[50,2,51,2],[52,2,53,2],[54,2,55,2],[56,2,57,2]]}
[]
[]
[]
[null,"REGISTRO DE LA LISTA DE VERIFICACION DE CIRUGIA SEGURA"]
[null,"AÑO: U.E.408 HOSPITAL DE ESPINAR  MAYO - 2022",null,null,"NO REGISTRA","NO PRECEDE"]
[null,null,"SI","NO","NR","NP","TOTAL"]
["ENTRADA","PACIENTE CONFIRMA SU IDENTIDAD, EL SITIO QUIRUGICO, EL PROCEDIMIENTO Y CONSENTIMIENTO",null,null,null,null,{"$f":"SUM(C7:F7)","v":0}]
[null,"SE HA MARCADO EL SITIO QUIRURGICO",null,null,null,null,{"$f":"SUM(C8:F8)","v":0},null,{"$f":"SUM(C7,C8,C9,C10,D11,D12,C13,D14,C15)","v":0},{"$f":"I8/$I$10","v":{"$error":"#DIV/0!"}}]
[null,"SE COMPROBO LA DISPONIBILIDAD DE LOS EQUIPOS DE ANESTESIA Y LA MEDICACION ANESTESICA",null,null,null,null,0,null,{"$f":"SUM(D7,D8,D9,D10,C11,C12,D13,C14,D15)","v":0},{"$f":"I9/$I$10","v":{"$error":"#DIV/0!"}}]
[null,"SE COLOCO EL PULXIOMETRO AL PACIENTE Y FUNCIONA",null,null,null,null,0,null,{"$f":"SUM(I8:I9)","v":0}]
[null,"EL PACIENTE TIENE ALERGIAS",null,null,null,null,0]
[null,"VIA AEREA DIFICIL / RIESGO DE ASPIRACION",null,null,null,null,0]
[null,"HAY INSTRUMENTAL Y EQUIPO DISPONIBLE",null,null,null,null,0]
[null,"RIESGO DE HEMORRAGIA MENOR A 500 ML",null,null,null,null,0]
[null,"SE HA PREVISTO DISPONIBILIDAD DE COMPONENTE SANGUINEO EN BANCO DE SANGRE",null,null,null,null,0]
["PAUSA","CONFIRMAR QUE TODOS LOS MIEMBROS DEL EQUIPO PROGRAMADOS SE HAYAN PRESENTADO POR SU NOMBRE",null,null,null,null,0]
[null,"CONFIRMAR LA IDENTIDAD DEL PACIENTE, EL PROCEDIMIENTO Y EL SITIO QUIRUGICO",null,null,null,null,0]
[null,"CONFIRMAR SI TODOS LOS MIEMBROS DEL EQUIPO HAN CUMPLIDO CORRECTAMENTE CON EL PROTOCOLO DE AS",null,null,null,null,0]
[null,"SE HA ADMINISTRADO PROFILAXIS CON ANTIBIOTICOS EN LOS ULTIMOS 60 MINUTOS",null,null,null,null,0,null,{"$f":"SUM(C16,C17,C18,C19,C20,,C22,D23,C24,D25,C26)","v":0},{"$f":"I19/$I$21","v":{"$error":"#DIV/0!"}}]
[null,"¿CUALES SON LOS PASOS CRITICOS O INESPERADO?",null,null,null,null,0,null,{"$f":"SUM(D16,D17,D18,D19,D20,D21,D22,C23,D24,C25,D26)","v":0},{"$f":"I20/$I$21","v":{"$error":"#DIV/0!"}}]
[null,"¿CUANTO DURARA LA OPERACIÓN?",null,null,null,null,0,null,{"$f":"SUM(I19:I20)","v":0}]
[null,"¿CUANTO ES LA PERDIDA DE SALGRE PREVISTA?",null,null,null,null,0]
[null,"¿PRESENTA EL PACIENTE ALGUN PROBLEMA ESPECIFICO?",null,null,null,null,0]
[null,"¿SE HA CONFIRMADO LA ESTERILIDAD DE ROPA, INSTRUMENTAL Y EQUIPOS?",null,null,null,null,0]
[null,"¿HAY DUDAS O PROBLEMAS RELACIONADOS CON ELLOS?",null,null,null,null,0]
[null,"¿PUEDEN VISUALIZARSE LAS IMÁGENES DIAGNOSTICADAS ESENCIALES?",null,null,null,null,0]
["SALIDA","EL ENFERMERO CONFIRMA VERBALMENTE EL NOMBRE DEL PROCEDIMIENTO",null,null,null,null,0]
[null,"EL RECUENTO DE INSTRUMENTOS, GASA Y AGUJAS",null,null,null,null,0,null,{"$f":"SUM(C27,C28,C29,C30,C31,D32)","v":0},{"$f":"I28/$I$30","v":{"$error":"#DIV/0!"}}]
[null,"EL ETIQUETADO DE LAS MUESTRAS (LECTURA DE LA ETIQUETA EN VOZ ALTA, INCLUIDO EL NOMBRE DEL PACIENTE",null,null,null,null,0,null,{"$f":"SUM(D27,D28,D29,D30,D31,C32)","v":0},{"$f":"I29/$I$30","v":{"$error":"#DIV/0!"}}]
[null,"SI HAY PROBLEMAS QUE SE RESUELVE RELACIONADOS CON EL INSTRUMENTAL Y LOS EQUIPOS",null,null,null,null,0,null,{"$f":"SUM(I28:I29)","v":0}]
[null,"(CIRUJANO, ANESTESIOLOGO, ENFERMERO) CUALES SON LOS ASPECTOS CRITICOS DE LA RECUPERACION Y EL TRAMITE",null,null,null,null,0]
[null,"OBSERVACIONES",null,null,null,null,0]
["FIRMA","FIRMA DEL CIRUJANO",null,null,null,null,0]
[null,"FIRMA DEL ANESTESIOLOGO",null,null,null,null,0]
[null,"FIRMA DE LA ENFERMERA",null,null,null,null,0,null,{"$f":"SUM(C33,C34,C35,C36,C37,C38,C39)","v":0},{"$f":"I35/$I$37","v":{"$error":"#DIV/0!"}}]
[null,"FIRMA DEL COORDINADOR",null,null,null,null,0,null,{"$f":"SUM(D33,D34,D35,D36,D37,,D38,D39)","v":0},{"$f":"I36/$I$37","v":{"$error":"#DIV/0!"}}]
[null,"NRO DE HISTORIA CLINICA",null,null,null,null,0,null,{"$f":"SUM(I35:I36)","v":0}]
[null,"NOMBRE Y APELLIDOS DEL PACIENTE",null,null,null,null,0]
[null,"FECHA",null,null,null,null,0]
[]
[]
[]
[]
[]
[null,"PORCENTAJE DE CUMPLIMIENTO DE LA LISTA DE VERIFICACION DE CIRUGIA SEGURA"]
[]
[]
[]
[]
[]
[null,null,"ENTRADA","(+)",{"$f":"J8","v":{"$error":"#DIV/0!"}}]
[null,null,null,"(-)",{"$f":"J9","v":{"$error":"#DIV/0!"}}]
[null,null,"PAUSA","(+)",{"$f":"J19","v":{"$error":"#DIV/0!"}},null,null,null,null,null,null,null,"Cumplimiento"]
[null,null,null,"(-)",{"$f":"J20","v":{"$error":"#DIV/0!"}},null,null,null,null,null,null,"Entrada",{"$f":"E51","v":{"$error":"#DIV/0!"}}]
[null,null,"SALIDA","(+)",{"$f":"J28","v":{"$error":"#DIV/0!"}},null,null,null,null,null,null,"Pausa",{"$f":"E53","v":{"$error":"#DIV/0!"}}]
[null,null,null,"(-)",{"$f":"J29","v":{"$error":"#DIV/0!"}},null,null,null,null,null,null,"Salida",{"$f":"E55","v":{"$error":"#DIV/0!"}}]
[null,null,"FIRMA","(+)",{"$f":"J35","v":{"$error":"#DIV/0!"}},null,null,null,null,null,null,"Firmas",{"$f":"E57","v":{"$error":"#DIV/0!"}}]
[null,null,null,"(-)",{"$f":"J36","v":{"$error":"#DIV/0!"}},null,null,null,null,null,null,"Cumplimiento",{"$f":"AVERAGE(M54:M57)","v":{"$error":"#DIV/0!"}}]
[null,null,"CUMPLIMIENTO",null,{"$f":"M58","v":{"$error":"#DIV/0!"}}]

{"sheet":"JUNIO","index":6,"n_rows":59,"n_cols":13,"rows_kept":59,"cut":false,"hidden":false,"merged":[[58,2,58,3],[6,0,14,0],[15,0,25,0],[26,0,31,0],[32,0,38,0],[50,2,51,2],[52,2,53,2],[54,2,55,2],[56,2,57,2]]}
[]
[]
[]
[null,"REGISTRO DE LA LISTA DE VERIFICACION DE CIRUGIA SEGURA"]
[null,"AÑO: U.E.408 HOSPITAL DE ESPINAR JUNIO - 2022",null,null,"NO REGISTRA","NO PRECEDE"]
[null,null,"SI","NO","NR","NP","TOTAL"]
["ENTRADA","PACIENTE CONFIRMA SU IDENTIDAD, EL SITIO QUIRUGICO, EL PROCEDIMIENTO Y CONSENTIMIENTO",null,null,null,null,{"$f":"SUM(C7:F7)","v":0}]
[null,"SE HA MARCADO EL SITIO QUIRURGICO",null,null,null,null,{"$f":"SUM(C8:F8)","v":0},null,{"$f":"SUM(C7,C8,C9,C10,D11,D12,C13,D14,C15)","v":0},{"$f":"I8/$I$10","v":{"$error":"#DIV/0!"}}]
[null,"SE COMPROBO LA DISPONIBILIDAD DE LOS EQUIPOS DE ANESTESIA Y LA MEDICACION ANESTESICA",null,null,null,null,0,null,{"$f":"SUM(D7,D8,D9,D10,C11,C12,D13,C14,D15)","v":0},{"$f":"I9/$I$10","v":{"$error":"#DIV/0!"}}]
[null,"SE COLOCO EL PULXIOMETRO AL PACIENTE Y FUNCIONA",null,null,null,null,0,null,{"$f":"SUM(I8:I9)","v":0}]
[null,"EL PACIENTE TIENE ALERGIAS",null,null,null,null,0]
[null,"VIA AEREA DIFICIL / RIESGO DE ASPIRACION",null,null,null,null,0]
[null,"HAY INSTRUMENTAL Y EQUIPO DISPONIBLE",null,null,null,null,0]
[null,"RIESGO DE HEMORRAGIA MENOR A 500 ML",null,null,null,null,0]
[null,"SE HA PREVISTO DISPONIBILIDAD DE COMPONENTE SANGUINEO EN BANCO DE SANGRE",null,null,null,null,0]
["PAUSA","CONFIRMAR QUE TODOS LOS MIEMBROS DEL EQUIPO PROGRAMADOS SE HAYAN PRESENTADO POR SU NOMBRE",null,null,null,null,0]
[null,"CONFIRMAR LA IDENTIDAD DEL PACIENTE, EL PROCEDIMIENTO Y EL SITIO QUIRUGICO",null,null,null,null,0]
[null,"CONFIRMAR SI TODOS LOS MIEMBROS DEL EQUIPO HAN CUMPLIDO CORRECTAMENTE CON EL PROTOCOLO DE AS",null,null,null,null,0]
[null,"SE HA ADMINISTRADO PROFILAXIS CON ANTIBIOTICOS EN LOS ULTIMOS 60 MINUTOS",null,null,null,null,0,null,{"$f":"SUM(C16,C17,C18,C19,C20,,C22,D23,C24,D25,C26)","v":0},{"$f":"I19/$I$21","v":{"$error":"#DIV/0!"}}]
[null,"¿CUALES SON LOS PASOS CRITICOS O INESPERADO?",null,null,null,null,0,null,{"$f":"SUM(D16,D17,D18,D19,D20,D21,D22,C23,D24,C25,D26)","v":0},{"$f":"I20/$I$21","v":{"$error":"#DIV/0!"}}]
[null,"¿CUANTO DURARA LA OPERACIÓN?",null,null,null,null,0,null,{"$f":"SUM(I19:I20)","v":0}]
[null,"¿CUANTO ES LA PERDIDA DE SALGRE PREVISTA?",null,null,null,null,0]
[null,"¿PRESENTA EL PACIENTE ALGUN PROBLEMA ESPECIFICO?",null,null,null,null,0]
[null,"¿SE HA CONFIRMADO LA ESTERILIDAD DE ROPA, INSTRUMENTAL Y EQUIPOS?",null,null,null,null,0]
[null,"¿HAY DUDAS O PROBLEMAS RELACIONADOS CON ELLOS?",null,null,null,null,0]
[null,"¿PUEDEN VISUALIZARSE LAS IMÁGENES DIAGNOSTICADAS ESENCIALES?",null,null,null,null,0]
["SALIDA","EL ENFERMERO CONFIRMA VERBALMENTE EL NOMBRE DEL PROCEDIMIENTO",null,null,null,null,0]
[null,"EL RECUENTO DE INSTRUMENTOS, GASA Y AGUJAS",null,null,null,null,0,null,{"$f":"SUM(C27,C28,C29,C30,C31,D32)","v":0},{"$f":"I28/$I$30","v":{"$error":"#DIV/0!"}}]
[null,"EL ETIQUETADO DE LAS MUESTRAS (LECTURA DE LA ETIQUETA EN VOZ ALTA, INCLUIDO EL NOMBRE DEL PACIENTE",null,null,null,null,0,null,{"$f":"SUM(D27,D28,D29,D30,D31,C32)","v":0},{"$f":"I29/$I$30","v":{"$error":"#DIV/0!"}}]
[null,"SI HAY PROBLEMAS QUE SE RESUELVE RELACIONADOS CON EL INSTRUMENTAL Y LOS EQUIPOS",null,null,null,null,0,null,{"$f":"SUM(I28:I29)","v":0}]
[null,"(CIRUJANO, ANESTESIOLOGO, ENFERMERO) CUALES SON LOS ASPECTOS CRITICOS DE LA RECUPERACION Y EL TRAMITE",null,null,null,null,0]
[null,"OBSERVACIONES",null,null,null,null,0]
["FIRMA","FIRMA DEL CIRUJANO",null,null,null,null,0]
[null,"FIRMA DEL ANESTESIOLOGO",null,null,null,null,0]
[null,"FIRMA DE LA ENFERMERA",null,null,null,null,0,null,{"$f":"SUM(C33,C34,C35,C36,C37,C38,C39)","v":0},{"$f":"I35/$I$37","v":{"$error":"#DIV/0!"}}]
[null,"FIRMA DEL COORDINADOR",null,null,null,null,0,null,{"$f":"SUM(D33,D34,D35,D36,D37,,D38,D39)","v":0},{"$f":"I36/$I$37","v":{"$error":"#DIV/0!"}}]
[null,"NRO DE HISTORIA CLINICA",null,null,null,null,0,null,{"$f":"SUM(I35:I36)","v":0}]
[null,"NOMBRE Y APELLIDOS DEL PACIENTE",null,null,null,null,0]
[null,"FECHA",null,null,null,null,0]
[]
[]
[]
[]
[]
[null,"PORCENTAJE DE CUMPLIMIENTO DE LA LISTA DE VERIFICACION DE CIRUGIA SEGURA"]
[]
[]
[]
[]
[]
[null,null,"ENTRADA","(+)",{"$f":"J8","v":{"$error":"#DIV/0!"}}]
[null,null,null,"(-)",{"$f":"J9","v":{"$error":"#DIV/0!"}}]
[null,null,"PAUSA","(+)",{"$f":"J19","v":{"$error":"#DIV/0!"}},null,null,null,null,null,null,null,"Cumplimiento"]
[null,null,null,"(-)",{"$f":"J20","v":{"$error":"#DIV/0!"}},null,null,null,null,null,null,"Entrada",{"$f":"E51","v":{"$error":"#DIV/0!"}}]
[null,null,"SALIDA","(+)",{"$f":"J28","v":{"$error":"#DIV/0!"}},null,null,null,null,null,null,"Pausa",{"$f":"E53","v":{"$error":"#DIV/0!"}}]
[null,null,null,"(-)",{"$f":"J29","v":{"$error":"#DIV/0!"}},null,null,null,null,null,null,"Salida",{"$f":"E55","v":{"$error":"#DIV/0!"}}]
[null,null,"FIRMA","(+)",{"$f":"J35","v":{"$error":"#DIV/0!"}},null,null,null,null,null,null,"Firmas",{"$f":"E57","v":{"$error":"#DIV/0!"}}]
[null,null,null,"(-)",{"$f":"J36","v":{"$error":"#DIV/0!"}},null,null,null,null,null,null,"Cumplimiento",{"$f":"AVERAGE(M54:M57)","v":{"$error":"#DIV/0!"}}]
[null,null,"CUMPLIMIENTO",null,{"$f":"M58","v":{"$error":"#DIV/0!"}}]

{"sheet":"JULIO","index":7,"n_rows":59,"n_cols":13,"rows_kept":59,"cut":false,"hidden":false,"merged":[[58,2,58,3],[6,0,14,0],[15,0,25,0],[26,0,31,0],[32,0,38,0],[50,2,51,2],[52,2,53,2],[54,2,55,2],[56,2,57,2]]}
[]
[]
[]
[null,"REGISTRO DE LA LISTA DE VERIFICACION DE CIRUGIA SEGURA"]
[null,"AÑO: U.E.408 HOSPITAL DE ESPINAR JULIO - 2021",null,null,"NO REGISTRA","NO PRECEDE"]
[null,null,"SI","NO","NR","NP","TOTAL"]
["ENTRADA","PACIENTE CONFIRMA SU IDENTIDAD, EL SITIO QUIRUGICO, EL PROCEDIMIENTO Y CONSENTIMIENTO",null,null,null,null,{"$f":"SUM(C7:F7)","v":0}]
[null,"SE HA MARCADO EL SITIO QUIRURGICO",null,null,null,null,{"$f":"SUM(C8:F8)","v":0},null,{"$f":"SUM(C7,C8,C9,C10,D11,D12,C13,D14,C15)","v":0},{"$f":"I8/$I$10","v":{"$error":"#DIV/0!"}}]
[null,"SE COMPROBO LA DISPONIBILIDAD DE LOS EQUIPOS DE ANESTESIA Y LA MEDICACION ANESTESICA",null,null,null,null,0,null,{"$f":"SUM(D7,D8,D9,D10,C11,C12,D13,C14,D15)","v":0},{"$f":"I9/$I$10","v":{"$error":"#DIV/0!"}}]
[null,"SE COLOCO EL PULXIOMETRO AL PACIENTE Y FUNCIONA",null,null,null,null,0,null,{"$f":"SUM(I8:I9)","v":0}]
[null,"EL PACIENTE TIENE ALERGIAS",null,null,null,null,0]
[null,"VIA AEREA DIFICIL / RIESGO DE ASPIRACION",null,null,null,null,0]
[null,"HAY INSTRUMENTAL Y EQUIPO DISPONIBLE",null,null,null,null,0]
[null,"RIESGO DE HEMORRAGIA MENOR A 500 ML",null,null,null,null,0]
[null,"SE HA PREVISTO DISPONIBILIDAD DE COMPONENTE SANGUINEO EN BANCO DE SANGRE",null,null,null,null,0]
["PAUSA","CONFIRMAR QUE TODOS LOS MIEMBROS DEL EQUIPO PROGRAMADOS SE HAYAN PRESENTADO POR SU NOMBRE",null,null,null,null,0]
[null,"CONFIRMAR LA IDENTIDAD DEL PACIENTE, EL PROCEDIMIENTO Y EL SITIO QUIRUGICO",null,null,null,null,0]
[null,"CONFIRMAR SI TODOS LOS MIEMBROS DEL EQUIPO HAN CUMPLIDO CORRECTAMENTE CON EL PROTOCOLO DE AS",null,null,null,null,0]
[null,"SE HA ADMINISTRADO PROFILAXIS CON ANTIBIOTICOS EN LOS ULTIMOS 60 MINUTOS",null,null,null,null,0,null,{"$f":"SUM(C16,C17,C18,C19,C20,,C22,D23,C24,D25,C26)","v":0},{"$f":"I19/$I$21","v":{"$error":"#DIV/0!"}}]
[null,"¿CUALES SON LOS PASOS CRITICOS O INESPERADO?",null,null,null,null,0,null,{"$f":"SUM(D16,D17,D18,D19,D20,D21,D22,C23,D24,C25,D26)","v":0},{"$f":"I20/$I$21","v":{"$error":"#DIV/0!"}}]
[null,"¿CUANTO DURARA LA OPERACIÓN?",null,null,null,null,0,null,{"$f":"SUM(I19:I20)","v":0}]
[null,"¿CUANTO ES LA PERDIDA DE SALGRE PREVISTA?",null,null,null,null,0]
[null,"¿PRESENTA EL PACIENTE ALGUN PROBLEMA ESPECIFICO?",null,null,null,null,0]
[null,"¿SE HA CONFIRMADO LA ESTERILIDAD DE ROPA, INSTRUMENTAL Y EQUIPOS?",null,null,null,null,0]
[null,"¿HAY DUDAS O PROBLEMAS RELACIONADOS CON ELLOS?",null,null,null,null,0]
[null,"¿PUEDEN VISUALIZARSE LAS IMÁGENES DIAGNOSTICADAS ESENCIALES?",null,null,null,null,0]
["SALIDA","EL ENFERMERO CONFIRMA VERBALMENTE EL NOMBRE DEL PROCEDIMIENTO",null,null,null,null,0]
[null,"EL RECUENTO DE INSTRUMENTOS, GASA Y AGUJAS",null,null,null,null,0,null,{"$f":"SUM(C27,C28,C29,C30,C31,D32)","v":0},{"$f":"I28/$I$30","v":{"$error":"#DIV/0!"}}]
[null,"EL ETIQUETADO DE LAS MUESTRAS (LECTURA DE LA ETIQUETA EN VOZ ALTA, INCLUIDO EL NOMBRE DEL PACIENTE",null,null,null,null,0,null,{"$f":"SUM(D27,D28,D29,D30,D31,C32)","v":0},{"$f":"I29/$I$30","v":{"$error":"#DIV/0!"}}]
[null,"SI HAY PROBLEMAS QUE SE RESUELVE RELACIONADOS CON EL INSTRUMENTAL Y LOS EQUIPOS",null,null,null,null,0,null,{"$f":"SUM(I28:I29)","v":0}]
[null,"(CIRUJANO, ANESTESIOLOGO, ENFERMERO) CUALES SON LOS ASPECTOS CRITICOS DE LA RECUPERACION Y EL TRAMITE",null,null,null,null,0]
[null,"OBSERVACIONES",null,null,null,null,0]
["FIRMA","FIRMA DEL CIRUJANO",null,null,null,null,0]
[null,"FIRMA DEL ANESTESIOLOGO",null,null,null,null,0]
[null,"FIRMA DE LA ENFERMERA",null,null,null,null,0,null,{"$f":"SUM(C33,C34,C35,C36,C37,C38,C39)","v":0},{"$f":"I35/$I$37","v":{"$error":"#DIV/0!"}}]
[null,"FIRMA DEL COORDINADOR",null,null,null,null,0,null,{"$f":"SUM(D33,D34,D35,D36,D37,,D38,D39)","v":0},{"$f":"I36/$I$37","v":{"$error":"#DIV/0!"}}]
[null,"NRO DE HISTORIA CLINICA",null,null,null,null,0,null,{"$f":"SUM(I35:I36)","v":0}]
[null,"NOMBRE Y APELLIDOS DEL PACIENTE",null,null,null,null,0]
[null,"FECHA",null,null,null,null,0]
[]
[]
[]
[]
[]
[null,"PORCENTAJE DE CUMPLIMIENTO DE LA LISTA DE VERIFICACION DE CIRUGIA SEGURA"]
[]
[]
[]
[]
[]
[null,null,"ENTRADA","(+)",{"$f":"J8","v":{"$error":"#DIV/0!"}}]
[null,null,null,"(-)",{"$f":"J9","v":{"$error":"#DIV/0!"}}]
[null,null,"PAUSA","(+)",{"$f":"J19","v":{"$error":"#DIV/0!"}},null,null,null,null,null,null,null,"Cumplimiento"]
[null,null,null,"(-)",{"$f":"J20","v":{"$error":"#DIV/0!"}},null,null,null,null,null,null,"Entrada",{"$f":"E51","v":{"$error":"#DIV/0!"}}]
[null,null,"SALIDA","(+)",{"$f":"J28","v":{"$error":"#DIV/0!"}},null,null,null,null,null,null,"Pausa",{"$f":"E53","v":{"$error":"#DIV/0!"}}]
[null,null,null,"(-)",{"$f":"J29","v":{"$error":"#DIV/0!"}},null,null,null,null,null,null,"Salida",{"$f":"E55","v":{"$error":"#DIV/0!"}}]
[null,null,"FIRMA","(+)",{"$f":"J35","v":{"$error":"#DIV/0!"}},null,null,null,null,null,null,"Firmas",{"$f":"E57","v":{"$error":"#DIV/0!"}}]
[null,null,null,"(-)",{"$f":"J36","v":{"$error":"#DIV/0!"}},null,null,null,null,null,null,"Cumplimiento",{"$f":"AVERAGE(M54:M57)","v":{"$error":"#DIV/0!"}}]
[null,null,"CUMPLIMIENTO",null,{"$f":"M58","v":{"$error":"#DIV/0!"}}]

{"sheet":"AGOSTO","index":8,"n_rows":59,"n_cols":13,"rows_kept":59,"cut":false,"hidden":false,"merged":[[58,2,58,3],[6,0,14,0],[15,0,25,0],[26,0,31,0],[32,0,38,0],[50,2,51,2],[52,2,53,2],[54,2,55,2],[56,2,57,2]]}
[]
[]
[]
[null,"REGISTRO DE LA LISTA DE VERIFICACION DE CIRUGIA SEGURA"]
[null,"AÑO: U.E.408 HOSPITAL DE ESPINAR AGOSTO - 2021",null,null,"NO REGISTRA","NO PRECEDE"]
[null,null,"SI","NO","NR","NP","TOTAL"]
["ENTRADA","PACIENTE CONFIRMA SU IDENTIDAD, EL SITIO QUIRUGICO, EL PROCEDIMIENTO Y CONSENTIMIENTO",null,null,null,null,{"$f":"SUM(C7:F7)","v":0}]
[null,"SE HA MARCADO EL SITIO QUIRURGICO",null,null,null,null,{"$f":"SUM(C8:F8)","v":0},null,{"$f":"SUM(C7,C8,C9,C10,D11,D12,C13,D14,C15)","v":0},{"$f":"I8/$I$10","v":{"$error":"#DIV/0!"}}]
[null,"SE COMPROBO LA DISPONIBILIDAD DE LOS EQUIPOS DE ANESTESIA Y LA MEDICACION ANESTESICA",null,null,null,null,0,null,{"$f":"SUM(D7,D8,D9,D10,C11,C12,D13,C14,D15)","v":0},{"$f":"I9/$I$10","v":{"$error":"#DIV/0!"}}]
[null,"SE COLOCO EL PULXIOMETRO AL PACIENTE Y FUNCIONA",null,null,null,null,0,null,{"$f":"SUM(I8:I9)","v":0}]
[null,"EL PACIENTE TIENE ALERGIAS",null,null,null,null,0]
[null,"VIA AEREA DIFICIL / RIESGO DE ASPIRACION",null,null,null,null,0]
[null,"HAY INSTRUMENTAL Y EQUIPO DISPONIBLE",null,null,null,null,0]
[null,"RIESGO DE HEMORRAGIA MENOR A 500 ML",null,null,null,null,0]
[null,"SE HA PREVISTO DISPONIBILIDAD DE COMPONENTE SANGUINEO EN BANCO DE SANGRE",null,null,null,null,0]
["PAUSA","CONFIRMAR QUE TODOS LOS MIEMBROS DEL EQUIPO PROGRAMADOS SE HAYAN PRESENTADO POR SU NOMBRE",null,null,null,null,0]
[null,"CONFIRMAR LA IDENTIDAD DEL PACIENTE, EL PROCEDIMIENTO Y EL SITIO QUIRUGICO",null,null,null,null,0]
[null,"CONFIRMAR SI TODOS LOS MIEMBROS DEL EQUIPO HAN CUMPLIDO CORRECTAMENTE CON EL PROTOCOLO DE AS",null,null,null,null,0]
[null,"SE HA ADMINISTRADO PROFILAXIS CON ANTIBIOTICOS EN LOS ULTIMOS 60 MINUTOS",null,null,null,null,0,null,{"$f":"SUM(C16,C17,C18,C19,C20,,C22,D23,C24,D25,C26)","v":0},{"$f":"I19/$I$21","v":{"$error":"#DIV/0!"}}]
[null,"¿CUALES SON LOS PASOS CRITICOS O INESPERADO?",null,null,null,null,0,null,{"$f":"SUM(D16,D17,D18,D19,D20,D21,D22,C23,D24,C25,D26)","v":0},{"$f":"I20/$I$21","v":{"$error":"#DIV/0!"}}]
[null,"¿CUANTO DURARA LA OPERACIÓN?",null,null,null,null,0,null,{"$f":"SUM(I19:I20)","v":0}]
[null,"¿CUANTO ES LA PERDIDA DE SALGRE PREVISTA?",null,null,null,null,0]
[null,"¿PRESENTA EL PACIENTE ALGUN PROBLEMA ESPECIFICO?",null,null,null,null,0]
[null,"¿SE HA CONFIRMADO LA ESTERILIDAD DE ROPA, INSTRUMENTAL Y EQUIPOS?",null,null,null,null,0]
[null,"¿HAY DUDAS O PROBLEMAS RELACIONADOS CON ELLOS?",null,null,null,null,0]
[null,"¿PUEDEN VISUALIZARSE LAS IMÁGENES DIAGNOSTICADAS ESENCIALES?",null,null,null,null,0]
["SALIDA","EL ENFERMERO CONFIRMA VERBALMENTE EL NOMBRE DEL PROCEDIMIENTO",null,null,null,null,0]
[null,"EL RECUENTO DE INSTRUMENTOS, GASA Y AGUJAS",null,null,null,null,0,null,{"$f":"SUM(C27,C28,C29,C30,C31,D32)","v":0},{"$f":"I28/$I$30","v":{"$error":"#DIV/0!"}}]
[null,"EL ETIQUETADO DE LAS MUESTRAS (LECTURA DE LA ETIQUETA EN VOZ ALTA, INCLUIDO EL NOMBRE DEL PACIENTE",null,null,null,null,0,null,{"$f":"SUM(D27,D28,D29,D30,D31,C32)","v":0},{"$f":"I29/$I$30","v":{"$error":"#DIV/0!"}}]
[null,"SI HAY PROBLEMAS QUE SE RESUELVE RELACIONADOS CON EL INSTRUMENTAL Y LOS EQUIPOS",null,null,null,null,0,null,{"$f":"SUM(I28:I29)","v":0}]
[null,"(CIRUJANO, ANESTESIOLOGO, ENFERMERO) CUALES SON LOS ASPECTOS CRITICOS DE LA RECUPERACION Y EL TRAMITE",null,null,null,null,0]
[null,"OBSERVACIONES",null,null,null,null,0]
["FIRMA","FIRMA DEL CIRUJANO",null,null,null,null,0]
[null,"FIRMA DEL ANESTESIOLOGO",null,null,null,null,0]
[null,"FIRMA DE LA ENFERMERA",null,null,null,null,0,null,{"$f":"SUM(C33,C34,C35,C36,C37,C38,C39)","v":0},{"$f":"I35/$I$37","v":{"$error":"#DIV/0!"}}]
[null,"FIRMA DEL COORDINADOR",null,null,null,null,0,null,{"$f":"SUM(D33,D34,D35,D36,D37,,D38,D39)","v":0},{"$f":"I36/$I$37","v":{"$error":"#DIV/0!"}}]
[null,"NRO DE HISTORIA CLINICA",null,null,null,null,0,null,{"$f":"SUM(I35:I36)","v":0}]
[null,"NOMBRE Y APELLIDOS DEL PACIENTE",null,null,null,null,0]
[null,"FECHA",null,null,null,null,0]
[]
[]
[]
[]
[]
[null,"PORCENTAJE DE CUMPLIMIENTO DE LA LISTA DE VERIFICACION DE CIRUGIA SEGURA"]
[]
[]
[]
[]
[]
[null,null,"ENTRADA","(+)",{"$f":"J8","v":{"$error":"#DIV/0!"}}]
[null,null,null,"(-)",{"$f":"J9","v":{"$error":"#DIV/0!"}}]
[null,null,"PAUSA","(+)",{"$f":"J19","v":{"$error":"#DIV/0!"}},null,null,null,null,null,null,null,"Cumplimiento"]
[null,null,null,"(-)",{"$f":"J20","v":{"$error":"#DIV/0!"}},null,null,null,null,null,null,"Entrada",{"$f":"E51","v":{"$error":"#DIV/0!"}}]
[null,null,"SALIDA","(+)",{"$f":"J28","v":{"$error":"#DIV/0!"}},null,null,null,null,null,null,"Pausa",{"$f":"E53","v":{"$error":"#DIV/0!"}}]
[null,null,null,"(-)",{"$f":"J29","v":{"$error":"#DIV/0!"}},null,null,null,null,null,null,"Salida",{"$f":"E55","v":{"$error":"#DIV/0!"}}]
[null,null,"FIRMA","(+)",{"$f":"J35","v":{"$error":"#DIV/0!"}},null,null,null,null,null,null,"Firmas",{"$f":"E57","v":{"$error":"#DIV/0!"}}]
[null,null,null,"(-)",{"$f":"J36","v":{"$error":"#DIV/0!"}},null,null,null,null,null,null,"Cumplimiento",{"$f":"AVERAGE(M54:M57)","v":{"$error":"#DIV/0!"}}]
[null,null,"CUMPLIMIENTO",null,{"$f":"M58","v":{"$error":"#DIV/0!"}}]

{"sheet":"SETIEMBRE","index":9,"n_rows":59,"n_cols":13,"rows_kept":59,"cut":false,"hidden":false,"merged":[[58,2,58,3],[6,0,14,0],[15,0,25,0],[26,0,31,0],[32,0,38,0],[50,2,51,2],[52,2,53,2],[54,2,55,2],[56,2,57,2]]}
[]
[]
[]
[null,"REGISTRO DE LA LISTA DE VERIFICACION DE CIRUGIA SEGURA"]
[null,"AÑO: U.E.408 HOSPITAL DE ESPINAR SEPTIEMBRE  - 2021",null,null,"NO REGISTRA","NO PRECEDE"]
[null,null,"SI","NO","NR","NP","TOTAL"]
["ENTRADA","PACIENTE CONFIRMA SU IDENTIDAD, EL SITIO QUIRUGICO, EL PROCEDIMIENTO Y CONSENTIMIENTO",null,null,null,null,{"$f":"SUM(C7:F7)","v":0}]
[null,"SE HA MARCADO EL SITIO QUIRURGICO",null,null,null,null,{"$f":"SUM(C8:F8)","v":0},null,{"$f":"SUM(C7,C8,C9,C10,D11,D12,C13,D14,C15)","v":0},{"$f":"I8/$I$10","v":{"$error":"#DIV/0!"}}]
[null,"SE COMPROBO LA DISPONIBILIDAD DE LOS EQUIPOS DE ANESTESIA Y LA MEDICACION ANESTESICA",null,null,null,null,0,null,{"$f":"SUM(D7,D8,D9,D10,C11,C12,D13,C14,D15)","v":0},{"$f":"I9/$I$10","v":{"$error":"#DIV/0!"}}]
[null,"SE COLOCO EL PULXIOMETRO AL PACIENTE Y FUNCIONA",null,null,null,null,0,null,{"$f":"SUM(I8:I9)","v":0}]
[null,"EL PACIENTE TIENE ALERGIAS",null,null,null,null,0]
[null,"VIA AEREA DIFICIL / RIESGO DE ASPIRACION",null,null,null,null,0]
[null,"HAY INSTRUMENTAL Y EQUIPO DISPONIBLE",null,null,null,null,0]
[null,"RIESGO DE HEMORRAGIA MENOR A 500 ML",null,null,null,null,0]
[null,"SE HA PREVISTO DISPONIBILIDAD DE COMPONENTE SANGUINEO EN BANCO DE SANGRE",null,null,null,null,0]
["PAUSA","CONFIRMAR QUE TODOS LOS MIEMBROS DEL EQUIPO PROGRAMADOS SE HAYAN PRESENTADO POR SU NOMBRE",null,null,null,null,0]
[null,"CONFIRMAR LA IDENTIDAD DEL PACIENTE, EL PROCEDIMIENTO Y EL SITIO QUIRUGICO",null,null,null,null,0]
[null,"CONFIRMAR SI TODOS LOS MIEMBROS DEL EQUIPO HAN CUMPLIDO CORRECTAMENTE CON EL PROTOCOLO DE AS",null,null,null,null,0]
[null,"SE HA ADMINISTRADO PROFILAXIS CON ANTIBIOTICOS EN LOS ULTIMOS 60 MINUTOS",null,null,null,null,0,null,{"$f":"SUM(C16,C17,C18,C19,C20,,C22,D23,C24,D25,C26)","v":0},{"$f":"I19/$I$21","v":{"$error":"#DIV/0!"}}]
[null,"¿CUALES SON LOS PASOS CRITICOS O INESPERADO?",null,null,null,null,0,null,{"$f":"SUM(D16,D17,D18,D19,D20,D21,D22,C23,D24,C25,D26)","v":0},{"$f":"I20/$I$21","v":{"$error":"#DIV/0!"}}]
[null,"¿CUANTO DURARA LA OPERACIÓN?",null,null,null,null,0,null,{"$f":"SUM(I19:I20)","v":0}]
[null,"¿CUANTO ES LA PERDIDA DE SALGRE PREVISTA?",null,null,null,null,0]
[null,"¿PRESENTA EL PACIENTE ALGUN PROBLEMA ESPECIFICO?",null,null,null,null,0]
[null,"¿SE HA CONFIRMADO LA ESTERILIDAD DE ROPA, INSTRUMENTAL Y EQUIPOS?",null,null,null,null,0]
[null,"¿HAY DUDAS O PROBLEMAS RELACIONADOS CON ELLOS?",null,null,null,null,0]
[null,"¿PUEDEN VISUALIZARSE LAS IMÁGENES DIAGNOSTICADAS ESENCIALES?",null,null,null,null,0]
["SALIDA","EL ENFERMERO CONFIRMA VERBALMENTE EL NOMBRE DEL PROCEDIMIENTO",null,null,null,null,0]
[null,"EL RECUENTO DE INSTRUMENTOS, GASA Y AGUJAS",null,null,null,null,0,null,{"$f":"SUM(C27,C28,C29,C30,C31,D32)","v":0},{"$f":"I28/$I$30","v":{"$error":"#DIV/0!"}}]
[null,"EL ETIQUETADO DE LAS MUESTRAS (LECTURA DE LA ETIQUETA EN VOZ ALTA, INCLUIDO EL NOMBRE DEL PACIENTE",null,null,null,null,0,null,{"$f":"SUM(D27,D28,D29,D30,D31,C32)","v":0},{"$f":"I29/$I$30","v":{"$error":"#DIV/0!"}}]
[null,"SI HAY PROBLEMAS QUE SE RESUELVE RELACIONADOS CON EL INSTRUMENTAL Y LOS EQUIPOS",null,null,null,null,0,null,{"$f":"SUM(I28:I29)","v":0}]
[null,"(CIRUJANO, ANESTESIOLOGO, ENFERMERO) CUALES SON LOS ASPECTOS CRITICOS DE LA RECUPERACION Y EL TRAMITE",null,null,null,null,0]
[null,"OBSERVACIONES",null,null,null,null,0]
["FIRMA","FIRMA DEL CIRUJANO",null,null,null,null,0]
[null,"FIRMA DEL ANESTESIOLOGO",null,null,null,null,0]
[null,"FIRMA DE LA ENFERMERA",null,null,null,null,0,null,{"$f":"SUM(C33,C34,C35,C36,C37,C38,C39)","v":0},{"$f":"I35/$I$37","v":{"$error":"#DIV/0!"}}]
[null,"FIRMA DEL COORDINADOR",null,null,null,null,0,null,{"$f":"SUM(D33,D34,D35,D36,D37,,D38,D39)","v":0},{"$f":"I36/$I$37","v":{"$error":"#DIV/0!"}}]
[null,"NRO DE HISTORIA CLINICA",null,null,null,null,0,null,{"$f":"SUM(I35:I36)","v":0}]
[null,"NOMBRE Y APELLIDOS DEL PACIENTE",null,null,null,null,0]
[null,"FECHA",null,null,null,null,0]
[]
[]
[]
[]
[]
[null,"PORCENTAJE DE CUMPLIMIENTO DE LA LISTA DE VERIFICACION DE CIRUGIA SEGURA"]
[]
[]
[]
[]
[]
[null,null,"ENTRADA","(+)",{"$f":"J8","v":{"$error":"#DIV/0!"}}]
[null,null,null,"(-)",{"$f":"J9","v":{"$error":"#DIV/0!"}}]
[null,null,"PAUSA","(+)",{"$f":"J19","v":{"$error":"#DIV/0!"}},null,null,null,null,null,null,null,"Cumplimiento"]
[null,null,null,"(-)",{"$f":"J20","v":{"$error":"#DIV/0!"}},null,null,null,null,null,null,"Entrada",{"$f":"E51","v":{"$error":"#DIV/0!"}}]
[null,null,"SALIDA","(+)",{"$f":"J28","v":{"$error":"#DIV/0!"}},null,null,null,null,null,null,"Pausa",{"$f":"E53","v":{"$error":"#DIV/0!"}}]
[null,null,null,"(-)",{"$f":"J29","v":{"$error":"#DIV/0!"}},null,null,null,null,null,null,"Salida",{"$f":"E55","v":{"$error":"#DIV/0!"}}]
[null,null,"FIRMA","(+)",{"$f":"J35","v":{"$error":"#DIV/0!"}},null,null,null,null,null,null,"Firmas",{"$f":"E57","v":{"$error":"#DIV/0!"}}]
[null,null,null,"(-)",{"$f":"J36","v":{"$error":"#DIV/0!"}},null,null,null,null,null,null,"Cumplimiento",{"$f":"AVERAGE(M54:M57)","v":{"$error":"#DIV/0!"}}]
[null,null,"CUMPLIMIENTO",null,{"$f":"M58","v":{"$error":"#DIV/0!"}}]

{"sheet":"OCTUBRE","index":10,"n_rows":59,"n_cols":13,"rows_kept":59,"cut":false,"hidden":false,"merged":[[58,2,58,3],[6,0,14,0],[15,0,25,0],[26,0,31,0],[32,0,38,0],[50,2,51,2],[52,2,53,2],[54,2,55,2],[56,2,57,2]]}
[]
[]
[]
[null,"REGISTRO DE LA LISTA DE VERIFICACION DE CIRUGIA SEGURA"]
[null,"AÑO: U.E.408 HOSPITAL DE ESPINAR OCTUBRE - 2022",null,null,"NO REGISTRA","NO PRECEDE"]
[null,null,"SI","NO","NR","NP","TOTAL"]
["ENTRADA","PACIENTE CONFIRMA SU IDENTIDAD, EL SITIO QUIRUGICO, EL PROCEDIMIENTO Y CONSENTIMIENTO",null,null,null,null,{"$f":"SUM(C7:F7)","v":0}]
[null,"SE HA MARCADO EL SITIO QUIRURGICO",null,null,null,null,{"$f":"SUM(C8:F8)","v":0},null,{"$f":"SUM(C7,C8,C9,C10,D11,D12,C13,D14,C15)","v":0},{"$f":"I8/$I$10","v":{"$error":"#DIV/0!"}}]
[null,"SE COMPROBO LA DISPONIBILIDAD DE LOS EQUIPOS DE ANESTESIA Y LA MEDICACION ANESTESICA",null,null,null,null,0,null,{"$f":"SUM(D7,D8,D9,D10,C11,C12,D13,C14,D15)","v":0},{"$f":"I9/$I$10","v":{"$error":"#DIV/0!"}}]
[null,"SE COLOCO EL PULXIOMETRO AL PACIENTE Y FUNCIONA",null,null,null,null,0,null,{"$f":"SUM(I8:I9)","v":0}]
[null,"EL PACIENTE TIENE ALERGIAS",null,null,null,null,0]
[null,"VIA AEREA DIFICIL / RIESGO DE ASPIRACION",null,null,null,null,0]
[null,"HAY INSTRUMENTAL Y EQUIPO DISPONIBLE",null,null,null,null,0]
[null,"RIESGO DE HEMORRAGIA MENOR A 500 ML",null,null,null,null,0]
[null,"SE HA PREVISTO DISPONIBILIDAD DE COMPONENTE SANGUINEO EN BANCO DE SANGRE",null,null,null,null,0]
["PAUSA","CONFIRMAR QUE TODOS LOS MIEMBROS DEL EQUIPO PROGRAMADOS SE HAYAN PRESENTADO POR SU NOMBRE",null,null,null,null,0]
[null,"CONFIRMAR LA IDENTIDAD DEL PACIENTE, EL PROCEDIMIENTO Y EL SITIO QUIRUGICO",null,null,null,null,0]
[null,"CONFIRMAR SI TODOS LOS MIEMBROS DEL EQUIPO HAN CUMPLIDO CORRECTAMENTE CON EL PROTOCOLO DE AS",null,null,null,null,0]
[null,"SE HA ADMINISTRADO PROFILAXIS CON ANTIBIOTICOS EN LOS ULTIMOS 60 MINUTOS",null,null,null,null,0,null,{"$f":"SUM(C16,C17,C18,C19,C20,,C22,D23,C24,D25,C26)","v":0},{"$f":"I19/$I$21","v":{"$error":"#DIV/0!"}}]
[null,"¿CUALES SON LOS PASOS CRITICOS O INESPERADO?",null,null,null,null,0,null,{"$f":"SUM(D16,D17,D18,D19,D20,D21,D22,C23,D24,C25,D26)","v":0},{"$f":"I20/$I$21","v":{"$error":"#DIV/0!"}}]
[null,"¿CUANTO DURARA LA OPERACIÓN?",null,null,null,null,0,null,{"$f":"SUM(I19:I20)","v":0}]
[null,"¿CUANTO ES LA PERDIDA DE SALGRE PREVISTA?",null,null,null,null,0]
[null,"¿PRESENTA EL PACIENTE ALGUN PROBLEMA ESPECIFICO?",null,null,null,null,0]
[null,"¿SE HA CONFIRMADO LA ESTERILIDAD DE ROPA, INSTRUMENTAL Y EQUIPOS?",null,null,null,null,0]
[null,"¿HAY DUDAS O PROBLEMAS RELACIONADOS CON ELLOS?",null,null,null,null,0]
[null,"¿PUEDEN VISUALIZARSE LAS IMÁGENES DIAGNOSTICADAS ESENCIALES?",null,null,null,null,0]
["SALIDA","EL ENFERMERO CONFIRMA VERBALMENTE EL NOMBRE DEL PROCEDIMIENTO",null,null,null,null,0]
[null,"EL RECUENTO DE INSTRUMENTOS, GASA Y AGUJAS",null,null,null,null,0,null,{"$f":"SUM(C27,C28,C29,C30,C31,D32)","v":0},{"$f":"I28/$I$30","v":{"$error":"#DIV/0!"}}]
[null,"EL ETIQUETADO DE LAS MUESTRAS (LECTURA DE LA ETIQUETA EN VOZ ALTA, INCLUIDO EL NOMBRE DEL PACIENTE",null,null,null,null,0,null,{"$f":"SUM(D27,D28,D29,D30,D31,C32)","v":0},{"$f":"I29/$I$30","v":{"$error":"#DIV/0!"}}]
[null,"SI HAY PROBLEMAS QUE SE RESUELVE RELACIONADOS CON EL INSTRUMENTAL Y LOS EQUIPOS",null,null,null,null,0,null,{"$f":"SUM(I28:I29)","v":0}]
[null,"(CIRUJANO, ANESTESIOLOGO, ENFERMERO) CUALES SON LOS ASPECTOS CRITICOS DE LA RECUPERACION Y EL TRAMITE",null,null,null,null,0]
[null,"OBSERVACIONES",null,null,null,null,0]
["FIRMA","FIRMA DEL CIRUJANO",null,null,null,null,0]
[null,"FIRMA DEL ANESTESIOLOGO",null,null,null,null,0]
[null,"FIRMA DE LA ENFERMERA",null,null,null,null,0,null,{"$f":"SUM(C33,C34,C35,C36,C37,C38,C39)","v":0},{"$f":"I35/$I$37","v":{"$error":"#DIV/0!"}}]
[null,"FIRMA DEL COORDINADOR",null,null,null,null,0,null,{"$f":"SUM(D33,D34,D35,D36,D37,,D38,D39)","v":0},{"$f":"I36/$I$37","v":{"$error":"#DIV/0!"}}]
[null,"NRO DE HISTORIA CLINICA",null,null,null,null,0,null,{"$f":"SUM(I35:I36)","v":0}]
[null,"NOMBRE Y APELLIDOS DEL PACIENTE",null,null,null,null,0]
[null,"FECHA",null,null,null,null,0]
[]
[]
[]
[]
[]
[null,"PORCENTAJE DE CUMPLIMIENTO DE LA LISTA DE VERIFICACION DE CIRUGIA SEGURA"]
[]
[]
[]
[]
[]
[null,null,"ENTRADA","(+)",{"$f":"J8","v":{"$error":"#DIV/0!"}}]
[null,null,null,"(-)",{"$f":"J9","v":{"$error":"#DIV/0!"}}]
[null,null,"PAUSA","(+)",{"$f":"J19","v":{"$error":"#DIV/0!"}},null,null,null,null,null,null,null,"Cumplimiento"]
[null,null,null,"(-)",{"$f":"J20","v":{"$error":"#DIV/0!"}},null,null,null,null,null,null,"Entrada",{"$f":"E51","v":{"$error":"#DIV/0!"}}]
[null,null,"SALIDA","(+)",{"$f":"J28","v":{"$error":"#DIV/0!"}},null,null,null,null,null,null,"Pausa",{"$f":"E53","v":{"$error":"#DIV/0!"}}]
[null,null,null,"(-)",{"$f":"J29","v":{"$error":"#DIV/0!"}},null,null,null,null,null,null,"Salida",{"$f":"E55","v":{"$error":"#DIV/0!"}}]
[null,null,"FIRMA","(+)",{"$f":"J35","v":{"$error":"#DIV/0!"}},null,null,null,null,null,null,"Firmas",{"$f":"E57","v":{"$error":"#DIV/0!"}}]
[null,null,null,"(-)",{"$f":"J36","v":{"$error":"#DIV/0!"}},null,null,null,null,null,null,"Cumplimiento",{"$f":"AVERAGE(M54:M57)","v":{"$error":"#DIV/0!"}}]
[null,null,"CUMPLIMIENTO",null,{"$f":"M58","v":{"$error":"#DIV/0!"}}]

{"sheet":"NOVIEMBRE","index":11,"n_rows":59,"n_cols":13,"rows_kept":59,"cut":false,"hidden":false,"merged":[[58,2,58,3],[6,0,14,0],[15,0,25,0],[26,0,31,0],[32,0,38,0],[50,2,51,2],[52,2,53,2],[54,2,55,2],[56,2,57,2]]}
[]
[]
[]
[null,"REGISTRO DE LA LISTA DE VERIFICACION DE CIRUGIA SEGURA"]
[null,"AÑO: U.E.408 HOSPITAL DE ESPINAR NOVIEMBRE - 2022",null,null,"NO REGISTRA","NO PRECEDE"]
[null,null,"SI","NO","NR","NP","TOTAL"]
["ENTRADA","PACIENTE CONFIRMA SU IDENTIDAD, EL SITIO QUIRUGICO, EL PROCEDIMIENTO Y CONSENTIMIENTO",null,null,null,null,{"$f":"SUM(C7:F7)","v":0}]
[null,"SE HA MARCADO EL SITIO QUIRURGICO",null,null,null,null,{"$f":"SUM(C8:F8)","v":0},null,{"$f":"SUM(C7,C8,C9,C10,D11,D12,C13,D14,C15)","v":0},{"$f":"I8/$I$10","v":{"$error":"#DIV/0!"}}]
[null,"SE COMPROBO LA DISPONIBILIDAD DE LOS EQUIPOS DE ANESTESIA Y LA MEDICACION ANESTESICA",null,null,null,null,0,null,{"$f":"SUM(D7,D8,D9,D10,C11,C12,D13,C14,D15)","v":0},{"$f":"I9/$I$10","v":{"$error":"#DIV/0!"}}]
[null,"SE COLOCO EL PULXIOMETRO AL PACIENTE Y FUNCIONA",null,null,null,null,0,null,{"$f":"SUM(I8:I9)","v":0}]
[null,"EL PACIENTE TIENE ALERGIAS",null,null,null,null,0]
[null,"VIA AEREA DIFICIL / RIESGO DE ASPIRACION",null,null,null,null,0]
[null,"HAY INSTRUMENTAL Y EQUIPO DISPONIBLE",null,null,null,null,0]
[null,"RIESGO DE HEMORRAGIA MENOR A 500 ML",null,null,null,null,0]
[null,"SE HA PREVISTO DISPONIBILIDAD DE COMPONENTE SANGUINEO EN BANCO DE SANGRE",null,null,null,null,0]
["PAUSA","CONFIRMAR QUE TODOS LOS MIEMBROS DEL EQUIPO PROGRAMADOS SE HAYAN PRESENTADO POR SU NOMBRE",null,null,null,null,0]
[null,"CONFIRMAR LA IDENTIDAD DEL PACIENTE, EL PROCEDIMIENTO Y EL SITIO QUIRUGICO",null,null,null,null,0]
[null,"CONFIRMAR SI TODOS LOS MIEMBROS DEL EQUIPO HAN CUMPLIDO CORRECTAMENTE CON EL PROTOCOLO DE AS",null,null,null,null,0]
[null,"SE HA ADMINISTRADO PROFILAXIS CON ANTIBIOTICOS EN LOS ULTIMOS 60 MINUTOS",null,null,null,null,0,null,{"$f":"SUM(C16,C17,C18,C19,C20,,C22,D23,C24,D25,C26)","v":0},{"$f":"I19/$I$21","v":{"$error":"#DIV/0!"}}]
[null,"¿CUALES SON LOS PASOS CRITICOS O INESPERADO?",null,null,null,null,0,null,{"$f":"SUM(D16,D17,D18,D19,D20,D21,D22,C23,D24,C25,D26)","v":0},{"$f":"I20/$I$21","v":{"$error":"#DIV/0!"}}]
[null,"¿CUANTO DURARA LA OPERACIÓN?",null,null,null,null,0,null,{"$f":"SUM(I19:I20)","v":0}]
[null,"¿CUANTO ES LA PERDIDA DE SALGRE PREVISTA?",null,null,null,null,0]
[null,"¿PRESENTA EL PACIENTE ALGUN PROBLEMA ESPECIFICO?",null,null,null,null,0]
[null,"¿SE HA CONFIRMADO LA ESTERILIDAD DE ROPA, INSTRUMENTAL Y EQUIPOS?",null,null,null,null,0]
[null,"¿HAY DUDAS O PROBLEMAS RELACIONADOS CON ELLOS?",null,null,null,null,0]
[null,"¿PUEDEN VISUALIZARSE LAS IMÁGENES DIAGNOSTICADAS ESENCIALES?",null,null,null,null,0]
["SALIDA","EL ENFERMERO CONFIRMA VERBALMENTE EL NOMBRE DEL PROCEDIMIENTO",null,null,null,null,0]
[null,"EL RECUENTO DE INSTRUMENTOS, GASA Y AGUJAS",null,null,null,null,0,null,{"$f":"SUM(C27,C28,C29,C30,C31,D32)","v":0},{"$f":"I28/$I$30","v":{"$error":"#DIV/0!"}}]
[null,"EL ETIQUETADO DE LAS MUESTRAS (LECTURA DE LA ETIQUETA EN VOZ ALTA, INCLUIDO EL NOMBRE DEL PACIENTE",null,null,null,null,0,null,{"$f":"SUM(D27,D28,D29,D30,D31,C32)","v":0},{"$f":"I29/$I$30","v":{"$error":"#DIV/0!"}}]
[null,"SI HAY PROBLEMAS QUE SE RESUELVE RELACIONADOS CON EL INSTRUMENTAL Y LOS EQUIPOS",null,null,null,null,0,null,{"$f":"SUM(I28:I29)","v":0}]
[null,"(CIRUJANO, ANESTESIOLOGO, ENFERMERO) CUALES SON LOS ASPECTOS CRITICOS DE LA RECUPERACION Y EL TRAMITE",null,null,null,null,0]
[null,"OBSERVACIONES",null,null,null,null,0]
["FIRMA","FIRMA DEL CIRUJANO",null,null,null,null,0]
[null,"FIRMA DEL ANESTESIOLOGO",null,null,null,null,0]
[null,"FIRMA DE LA ENFERMERA",null,null,null,null,0,null,{"$f":"SUM(C33,C34,C35,C36,C37,C38,C39)","v":0},{"$f":"I35/$I$37","v":{"$error":"#DIV/0!"}}]
[null,"FIRMA DEL COORDINADOR",null,null,null,null,0,null,{"$f":"SUM(D33,D34,D35,D36,D37,,D38,D39)","v":0},{"$f":"I36/$I$37","v":{"$error":"#DIV/0!"}}]
[null,"NRO DE HISTORIA CLINICA",null,null,null,null,0,null,{"$f":"SUM(I35:I36)","v":0}]
[null,"NOMBRE Y APELLIDOS DEL PACIENTE",null,null,null,null,0]
[null,"FECHA",null,null,null,null,0]
[]
[]
[]
[]
[]
[null,"PORCENTAJE DE CUMPLIMIENTO DE LA LISTA DE VERIFICACION DE CIRUGIA SEGURA"]
[]
[]
[]
[]
[]
[null,null,"ENTRADA","(+)",{"$f":"J8","v":{"$error":"#DIV/0!"}}]
[null,null,null,"(-)",{"$f":"J9","v":{"$error":"#DIV/0!"}}]
[null,null,"PAUSA","(+)",{"$f":"J19","v":{"$error":"#DIV/0!"}},null,null,null,null,null,null,null,"Cumplimiento"]
[null,null,null,"(-)",{"$f":"J20","v":{"$error":"#DIV/0!"}},null,null,null,null,null,null,"Entrada",{"$f":"E51","v":{"$error":"#DIV/0!"}}]
[null,null,"SALIDA","(+)",{"$f":"J28","v":{"$error":"#DIV/0!"}},null,null,null,null,null,null,"Pausa",{"$f":"E53","v":{"$error":"#DIV/0!"}}]
[null,null,null,"(-)",{"$f":"J29","v":{"$error":"#DIV/0!"}},null,null,null,null,null,null,"Salida",{"$f":"E55","v":{"$error":"#DIV/0!"}}]
[null,null,"FIRMA","(+)",{"$f":"J35","v":{"$error":"#DIV/0!"}},null,null,null,null,null,null,"Firmas",{"$f":"E57","v":{"$error":"#DIV/0!"}}]
[null,null,null,"(-)",{"$f":"J36","v":{"$error":"#DIV/0!"}},null,null,null,null,null,null,"Cumplimiento",{"$f":"AVERAGE(M54:M57)","v":{"$error":"#DIV/0!"}}]
[null,null,"CUMPLIMIENTO",null,{"$f":"M58","v":{"$error":"#DIV/0!"}}]

{"sheet":"DICIEMBRE","index":12,"n_rows":59,"n_cols":13,"rows_kept":59,"cut":false,"hidden":false,"merged":[[58,2,58,3],[6,0,14,0],[15,0,25,0],[26,0,31,0],[32,0,38,0],[50,2,51,2],[52,2,53,2],[54,2,55,2],[56,2,57,2]]}
[]
[]
[]
[null,"REGISTRO DE LA LISTA DE VERIFICACION DE CIRUGIA SEGURA"]
[null,"AÑO: U.E.408 HOSPITAL DE ESPINAR  DICIEMBRE - 2022",null,null,"NO REGISTRA","NO PRECEDE"]
[null,null,"SI","NO","NR","NP","TOTAL"]
["ENTRADA","PACIENTE CONFIRMA SU IDENTIDAD, EL SITIO QUIRUGICO, EL PROCEDIMIENTO Y CONSENTIMIENTO",null,null,null,null,{"$f":"SUM(C7:F7)","v":0}]
[null,"SE HA MARCADO EL SITIO QUIRURGICO",null,null,null,null,{"$f":"SUM(C8:F8)","v":0},null,{"$f":"SUM(C7,C8,C9,C10,D11,D12,C13,D14,C15)","v":0},{"$f":"I8/$I$10","v":{"$error":"#DIV/0!"}}]
[null,"SE COMPROBO LA DISPONIBILIDAD DE LOS EQUIPOS DE ANESTESIA Y LA MEDICACION ANESTESICA",null,null,null,null,0,null,{"$f":"SUM(D7,D8,D9,D10,C11,C12,D13,C14,D15)","v":0},{"$f":"I9/$I$10","v":{"$error":"#DIV/0!"}}]
[null,"SE COLOCO EL PULXIOMETRO AL PACIENTE Y FUNCIONA",null,null,null,null,0,null,{"$f":"SUM(I8:I9)","v":0}]
[null,"EL PACIENTE TIENE ALERGIAS",null,null,null,null,0]
[null,"VIA AEREA DIFICIL / RIESGO DE ASPIRACION",null,null,null,null,0]
[null,"HAY INSTRUMENTAL Y EQUIPO DISPONIBLE",null,null,null,null,0]
[null,"RIESGO DE HEMORRAGIA MENOR A 500 ML",null,null,null,null,0]
[null,"SE HA PREVISTO DISPONIBILIDAD DE COMPONENTE SANGUINEO EN BANCO DE SANGRE",null,null,null,null,0]
["PAUSA","CONFIRMAR QUE TODOS LOS MIEMBROS DEL EQUIPO PROGRAMADOS SE HAYAN PRESENTADO POR SU NOMBRE",null,null,null,null,0]
[null,"CONFIRMAR LA IDENTIDAD DEL PACIENTE, EL PROCEDIMIENTO Y EL SITIO QUIRUGICO",null,null,null,null,0]
[null,"CONFIRMAR SI TODOS LOS MIEMBROS DEL EQUIPO HAN CUMPLIDO CORRECTAMENTE CON EL PROTOCOLO DE AS",null,null,null,null,0]
[null,"SE HA ADMINISTRADO PROFILAXIS CON ANTIBIOTICOS EN LOS ULTIMOS 60 MINUTOS",null,null,null,null,0,null,{"$f":"SUM(C16,C17,C18,C19,C20,,C22,D23,C24,D25,C26)","v":0},{"$f":"I19/$I$21","v":{"$error":"#DIV/0!"}}]
[null,"¿CUALES SON LOS PASOS CRITICOS O INESPERADO?",null,null,null,null,0,null,{"$f":"SUM(D16,D17,D18,D19,D20,D21,D22,C23,D24,C25,D26)","v":0},{"$f":"I20/$I$21","v":{"$error":"#DIV/0!"}}]
[null,"¿CUANTO DURARA LA OPERACIÓN?",null,null,null,null,0,null,{"$f":"SUM(I19:I20)","v":0}]
[null,"¿CUANTO ES LA PERDIDA DE SALGRE PREVISTA?",null,null,null,null,0]
[null,"¿PRESENTA EL PACIENTE ALGUN PROBLEMA ESPECIFICO?",null,null,null,null,0]
[null,"¿SE HA CONFIRMADO LA ESTERILIDAD DE ROPA, INSTRUMENTAL Y EQUIPOS?",null,null,null,null,0]
[null,"¿HAY DUDAS O PROBLEMAS RELACIONADOS CON ELLOS?",null,null,null,null,0]
[null,"¿PUEDEN VISUALIZARSE LAS IMÁGENES DIAGNOSTICADAS ESENCIALES?",null,null,null,null,0]
["SALIDA","EL ENFERMERO CONFIRMA VERBALMENTE EL NOMBRE DEL PROCEDIMIENTO",null,null,null,null,0]
[null,"EL RECUENTO DE INSTRUMENTOS, GASA Y AGUJAS",null,null,null,null,0,null,{"$f":"SUM(C27,C28,C29,C30,C31,D32)","v":0},{"$f":"I28/$I$30","v":{"$error":"#DIV/0!"}}]
[null,"EL ETIQUETADO DE LAS MUESTRAS (LECTURA DE LA ETIQUETA EN VOZ ALTA, INCLUIDO EL NOMBRE DEL PACIENTE",null,null,null,null,0,null,{"$f":"SUM(D27,D28,D29,D30,D31,C32)","v":0},{"$f":"I29/$I$30","v":{"$error":"#DIV/0!"}}]
[null,"SI HAY PROBLEMAS QUE SE RESUELVE RELACIONADOS CON EL INSTRUMENTAL Y LOS EQUIPOS",null,null,null,null,0,null,{"$f":"SUM(I28:I29)","v":0}]
[null,"(CIRUJANO, ANESTESIOLOGO, ENFERMERO) CUALES SON LOS ASPECTOS CRITICOS DE LA RECUPERACION Y EL TRAMITE",null,null,null,null,0]
[null,"OBSERVACIONES",null,null,null,null,0]
["FIRMA","FIRMA DEL CIRUJANO",null,null,null,null,0]
[null,"FIRMA DEL ANESTESIOLOGO",null,null,null,null,0]
[null,"FIRMA DE LA ENFERMERA",null,null,null,null,0,null,{"$f":"SUM(C33,C34,C35,C36,C37,C38,C39)","v":0},{"$f":"I35/$I$37","v":{"$error":"#DIV/0!"}}]
[null,"FIRMA DEL COORDINADOR",null,null,null,null,0,null,{"$f":"SUM(D33,D34,D35,D36,D37,,D38,D39)","v":0},{"$f":"I36/$I$37","v":{"$error":"#DIV/0!"}}]
[null,"NRO DE HISTORIA CLINICA",null,null,null,null,0,null,{"$f":"SUM(I35:I36)","v":0}]
[null,"NOMBRE Y APELLIDOS DEL PACIENTE",null,null,null,null,0]
[null,"FECHA",null,null,null,null,0]
[]
[]
[]
[]
[]
[null,"PORCENTAJE DE CUMPLIMIENTO DE LA LISTA DE VERIFICACION DE CIRUGIA SEGURA"]
[]
[]
[]
[]
[]
[null,null,"ENTRADA","(+)",{"$f":"J8","v":{"$error":"#DIV/0!"}}]
[null,null,null,"(-)",{"$f":"J9","v":{"$error":"#DIV/0!"}}]
[null,null,"PAUSA","(+)",{"$f":"J19","v":{"$error":"#DIV/0!"}},null,null,null,null,null,null,null,"Cumplimiento"]
[null,null,null,"(-)",{"$f":"J20","v":{"$error":"#DIV/0!"}},null,null,null,null,null,null,"Entrada",{"$f":"E51","v":{"$error":"#DIV/0!"}}]
[null,null,"SALIDA","(+)",{"$f":"J28","v":{"$error":"#DIV/0!"}},null,null,null,null,null,null,"Pausa",{"$f":"E53","v":{"$error":"#DIV/0!"}}]
[null,null,null,"(-)",{"$f":"J29","v":{"$error":"#DIV/0!"}},null,null,null,null,null,null,"Salida",{"$f":"E55","v":{"$error":"#DIV/0!"}}]
[null,null,"FIRMA","(+)",{"$f":"J35","v":{"$error":"#DIV/0!"}},null,null,null,null,null,null,"Firmas",{"$f":"E57","v":{"$error":"#DIV/0!"}}]
[null,null,null,"(-)",{"$f":"J36","v":{"$error":"#DIV/0!"}},null,null,null,null,null,null,"Cumplimiento",{"$f":"AVERAGE(M54:M57)","v":{"$error":"#DIV/0!"}}]
[null,null,"CUMPLIMIENTO",null,{"$f":"M58","v":{"$error":"#DIV/0!"}}]

{"sheet":"Final","index":13,"n_rows":59,"n_cols":13,"rows_kept":59,"cut":false,"hidden":false,"merged":[[58,2,58,3],[6,0,14,0],[15,0,25,0],[26,0,31,0],[32,0,38,0],[50,2,51,2],[52,2,53,2],[54,2,55,2],[56,2,57,2]]}
[]
[]
[]
[null,"REGISTRO DE LA LISTA DE VERIFICACION DE CIRUGIA SEGURA"]
[null," CONSOLIDADO II TRIMESTRE 2022",null,null,"NO REGISTRA","NO PRECEDE"]
[null,null,"SI","NO","NR","NP","TOTAL"]
["ENTRADA","PACIENTE CONFIRMA SU IDENTIDAD, EL SITIO QUIRUGICO, EL PROCEDIMIENTO Y CONSENTIMIENTO",{"$f":"SUM(ENERO!C7+#REF!+'I TRIMESTRE 2023'!C7+ABRIL!C7+MAYO!C7+JUNIO!C7+JULIO!C7+AGOSTO!C7+SETIEMBRE!C7+OCTUBRE!C7+NOVIEMBRE!C7+DICIEMBRE!C7)","v":{"$error":"#REF!"}},{"$f":"SUM(ENERO!D7+#REF!+'I TRIMESTRE 2023'!D7+ABRIL!D7+MAYO!D7+JUNIO!D7+JULIO!D7+AGOSTO!D7+SETIEMBRE!D7+OCTUBRE!D7+NOVIEMBRE!D7+DICIEMBRE!D7)","v":{"$error":"#REF!"}},{"$f":"SUM(ENERO!E7+#REF!+'I TRIMESTRE 2023'!E7+ABRIL!E7+MAYO!E7+JUNIO!E7+JULIO!E7+AGOSTO!E7+SETIEMBRE!E7+OCTUBRE!E7+NOVIEMBRE!E7+DICIEMBRE!E7)","v":{"$error":"#REF!"}},{"$f":"SUM(ENERO!F7+#REF!+'I TRIMESTRE 2023'!F7+ABRIL!F7+MAYO!F7+JUNIO!F7+JULIO!F7+AGOSTO!F7+SETIEMBRE!F7+OCTUBRE!F7+NOVIEMBRE!F7+DICIEMBRE!F7)","v":{"$error":"#REF!"}},{"$f":"SUM(C7:F7)","v":{"$error":"#REF!"}}]
[null,"SE HA MARCADO EL SITIO QUIRURGICO",{"$f":"SUM(ENERO!C8+#REF!+'I TRIMESTRE 2023'!C8+ABRIL!C8+MAYO!C8+JUNIO!C8+JULIO!C8+AGOSTO!C8+SETIEMBRE!C8+OCTUBRE!C8+NOVIEMBRE!C8+DICIEMBRE!C8)","v":{"$error":"#REF!"}},{"$f":"SUM(ENERO!D8+#REF!+'I TRIMESTRE 2023'!D8+ABRIL!D8+MAYO!D8+JUNIO!D8+JULIO!D8+AGOSTO!D8+SETIEMBRE!D8+OCTUBRE!D8+NOVIEMBRE!D8+DICIEMBRE!D8)","v":{"$error":"#REF!"}},{"$f":"SUM(ENERO!E8+#REF!+'I TRIMESTRE 2023'!E8+ABRIL!E8+MAYO!E8+JUNIO!E8+JULIO!E8+AGOSTO!E8+SETIEMBRE!E8+OCTUBRE!E8+NOVIEMBRE!E8+DICIEMBRE!E8)","v":{"$error":"#REF!"}},{"$f":"SUM(ENERO!F8+#REF!+'I TRIMESTRE 2023'!F8+ABRIL!F8+MAYO!F8+JUNIO!F8+JULIO!F8+AGOSTO!F8+SETIEMBRE!F8+OCTUBRE!F8+NOVIEMBRE!F8+DICIEMBRE!F8)","v":{"$error":"#REF!"}},{"$f":"SUM(C8:F8)","v":{"$error":"#REF!"}},null,{"$f":"SUM(C7,C8,C9,C10,D11,D12,C13,D14,C15)","v":{"$error":"#REF!"}},{"$f":"I8/$I$10","v":{"$error":"#REF!"}}]
[null,"SE COMPROBO LA DISPONIBILIDAD DE LOS EQUIPOS DE ANESTESIA Y LA MEDICACION ANESTESICA",{"$f":"SUM(ENERO!C9+#REF!+'I TRIMESTRE 2023'!C9+ABRIL!C9+MAYO!C9+JUNIO!C9+JULIO!C9+AGOSTO!C9+SETIEMBRE!C9+OCTUBRE!C9+NOVIEMBRE!C9+DICIEMBRE!C9)","v":{"$error":"#REF!"}},{"$f":"SUM(ENERO!D9+#REF!+'I TRIMESTRE 2023'!D9+ABRIL!D9+MAYO!D9+JUNIO!D9+JULIO!D9+AGOSTO!D9+SETIEMBRE!D9+OCTUBRE!D9+NOVIEMBRE!D9+DICIEMBRE!D9)","v":{"$error":"#REF!"}},{"$f":"SUM(ENERO!E9+#REF!+'I TRIMESTRE 2023'!E9+ABRIL!E9+MAYO!E9+JUNIO!E9+JULIO!E9+AGOSTO!E9+SETIEMBRE!E9+OCTUBRE!E9+NOVIEMBRE!E9+DICIEMBRE!E9)","v":{"$error":"#REF!"}},{"$f":"SUM(ENERO!F9+#REF!+'I TRIMESTRE 2023'!F9+ABRIL!F9+MAYO!F9+JUNIO!F9+JULIO!F9+AGOSTO!F9+SETIEMBRE!F9+OCTUBRE!F9+NOVIEMBRE!F9+DICIEMBRE!F9)","v":{"$error":"#REF!"}},{"$error":"#REF!"},null,{"$f":"SUM(D7,D8,D9,D10,C11,C12,D13,C14,D15)","v":{"$error":"#REF!"}},{"$f":"I9/$I$10","v":{"$error":"#REF!"}}]
[null,"SE COLOCO EL PULXIOMETRO AL PACIENTE Y FUNCIONA",{"$f":"SUM(ENERO!C10+#REF!+'I TRIMESTRE 2023'!C10+ABRIL!C10+MAYO!C10+JUNIO!C10+JULIO!C10+AGOSTO!C10+SETIEMBRE!C10+OCTUBRE!C10+NOVIEMBRE!C10+DICIEMBRE!C10)","v":{"$error":"#REF!"}},{"$f":"SUM(ENERO!D10+#REF!+'I TRIMESTRE 2023'!D10+ABRIL!D10+MAYO!D10+JUNIO!D10+JULIO!D10+AGOSTO!D10+SETIEMBRE!D10+OCTUBRE!D10+NOVIEMBRE!D10+DICIEMBRE!D10)","v":{"$error":"#REF!"}},{"$f":"SUM(ENERO!E10+#REF!+'I TRIMESTRE 2023'!E10+ABRIL!E10+MAYO!E10+JUNIO!E10+JULIO!E10+AGOSTO!E10+SETIEMBRE!E10+OCTUBRE!E10+NOVIEMBRE!E10+DICIEMBRE!E10)","v":{"$error":"#REF!"}},{"$f":"SUM(ENERO!F10+#REF!+'I TRIMESTRE 2023'!F10+ABRIL!F10+MAYO!F10+JUNIO!F10+JULIO!F10+AGOSTO!F10+SETIEMBRE!F10+OCTUBRE!F10+NOVIEMBRE!F10+DICIEMBRE!F10)","v":{"$error":"#REF!"}},{"$error":"#REF!"},null,{"$f":"SUM(I8:I9)","v":{"$error":"#REF!"}}]
[null,"EL PACIENTE TIENE ALERGIAS",{"$f":"SUM(ENERO!C11+#REF!+'I TRIMESTRE 2023'!C11+ABRIL!C11+MAYO!C11+JUNIO!C11+JULIO!C11+AGOSTO!C11+SETIEMBRE!C11+OCTUBRE!C11+NOVIEMBRE!C11+DICIEMBRE!C11)","v":{"$error":"#REF!"}},{"$f":"SUM(ENERO!D11+#REF!+'I TRIMESTRE 2023'!D11+ABRIL!D11+MAYO!D11+JUNIO!D11+JULIO!D11+AGOSTO!D11+SETIEMBRE!D11+OCTUBRE!D11+NOVIEMBRE!D11+DICIEMBRE!D11)","v":{"$error":"#REF!"}},{"$f":"SUM(ENERO!E11+#REF!+'I TRIMESTRE 2023'!E11+ABRIL!E11+MAYO!E11+JUNIO!E11+JULIO!E11+AGOSTO!E11+SETIEMBRE!E11+OCTUBRE!E11+NOVIEMBRE!E11+DICIEMBRE!E11)","v":{"$error":"#REF!"}},{"$f":"SUM(ENERO!F11+#REF!+'I TRIMESTRE 2023'!F11+ABRIL!F11+MAYO!F11+JUNIO!F11+JULIO!F11+AGOSTO!F11+SETIEMBRE!F11+OCTUBRE!F11+NOVIEMBRE!F11+DICIEMBRE!F11)","v":{"$error":"#REF!"}},{"$error":"#REF!"}]
[null,"VIA AEREA DIFICIL / RIESGO DE ASPIRACION",{"$f":"SUM(ENERO!C12+#REF!+'I TRIMESTRE 2023'!C12+ABRIL!C12+MAYO!C12+JUNIO!C12+JULIO!C12+AGOSTO!C12+SETIEMBRE!C12+OCTUBRE!C12+NOVIEMBRE!C12+DICIEMBRE!C12)","v":{"$error":"#REF!"}},{"$f":"SUM(ENERO!D12+#REF!+'I TRIMESTRE 2023'!D12+ABRIL!D12+MAYO!D12+JUNIO!D12+JULIO!D12+AGOSTO!D12+SETIEMBRE!D12+OCTUBRE!D12+NOVIEMBRE!D12+DICIEMBRE!D12)","v":{"$error":"#REF!"}},{"$f":"SUM(ENERO!E12+#REF!+'I TRIMESTRE 2023'!E12+ABRIL!E12+MAYO!E12+JUNIO!E12+JULIO!E12+AGOSTO!E12+SETIEMBRE!E12+OCTUBRE!E12+NOVIEMBRE!E12+DICIEMBRE!E12)","v":{"$error":"#REF!"}},{"$f":"SUM(ENERO!F12+#REF!+'I TRIMESTRE 2023'!F12+ABRIL!F12+MAYO!F12+JUNIO!F12+JULIO!F12+AGOSTO!F12+SETIEMBRE!F12+OCTUBRE!F12+NOVIEMBRE!F12+DICIEMBRE!F12)","v":{"$error":"#REF!"}},{"$error":"#REF!"}]
[null,"HAY INSTRUMENTAL Y EQUIPO DISPONIBLE",{"$f":"SUM(ENERO!C13+#REF!+'I TRIMESTRE 2023'!C13+ABRIL!C13+MAYO!C13+JUNIO!C13+JULIO!C13+AGOSTO!C13+SETIEMBRE!C13+OCTUBRE!C13+NOVIEMBRE!C13+DICIEMBRE!C13)","v":{"$error":"#REF!"}},{"$f":"SUM(ENERO!D13+#REF!+'I TRIMESTRE 2023'!D13+ABRIL!D13+MAYO!D13+JUNIO!D13+JULIO!D13+AGOSTO!D13+SETIEMBRE!D13+OCTUBRE!D13+NOVIEMBRE!D13+DICIEMBRE!D13)","v":{"$error":"#REF!"}},{"$f":"SUM(ENERO!E13+#REF!+'I TRIMESTRE 2023'!E13+ABRIL!E13+MAYO!E13+JUNIO!E13+JULIO!E13+AGOSTO!E13+SETIEMBRE!E13+OCTUBRE!E13+NOVIEMBRE!E13+DICIEMBRE!E13)","v":{"$error":"#REF!"}},{"$f":"SUM(ENERO!F13+#REF!+'I TRIMESTRE 2023'!F13+ABRIL!F13+MAYO!F13+JUNIO!F13+JULIO!F13+AGOSTO!F13+SETIEMBRE!F13+OCTUBRE!F13+NOVIEMBRE!F13+DICIEMBRE!F13)","v":{"$error":"#REF!"}},{"$error":"#REF!"}]
[null,"RIESGO DE HEMORRAGIA MENOR A 500 ML",{"$f":"SUM(ENERO!C14+#REF!+'I TRIMESTRE 2023'!C14+ABRIL!C14+MAYO!C14+JUNIO!C14+JULIO!C14+AGOSTO!C14+SETIEMBRE!C14+OCTUBRE!C14+NOVIEMBRE!C14+DICIEMBRE!C14)","v":{"$error":"#REF!"}},{"$f":"SUM(ENERO!D14+#REF!+'I TRIMESTRE 2023'!D14+ABRIL!D14+MAYO!D14+JUNIO!D14+JULIO!D14+AGOSTO!D14+SETIEMBRE!D14+OCTUBRE!D14+NOVIEMBRE!D14+DICIEMBRE!D14)","v":{"$error":"#REF!"}},{"$f":"SUM(ENERO!E14+#REF!+'I TRIMESTRE 2023'!E14+ABRIL!E14+MAYO!E14+JUNIO!E14+JULIO!E14+AGOSTO!E14+SETIEMBRE!E14+OCTUBRE!E14+NOVIEMBRE!E14+DICIEMBRE!E14)","v":{"$error":"#REF!"}},{"$f":"SUM(ENERO!F14+#REF!+'I TRIMESTRE 2023'!F14+ABRIL!F14+MAYO!F14+JUNIO!F14+JULIO!F14+AGOSTO!F14+SETIEMBRE!F14+OCTUBRE!F14+NOVIEMBRE!F14+DICIEMBRE!F14)","v":{"$error":"#REF!"}},{"$error":"#REF!"}]
[null,"SE HA PREVISTO DISPONIBILIDAD DE COMPONENTE SANGUINEO EN BANCO DE SANGRE",{"$f":"SUM(ENERO!C15+#REF!+'I TRIMESTRE 2023'!C15+ABRIL!C15+MAYO!C15+JUNIO!C15+JULIO!C15+AGOSTO!C15+SETIEMBRE!C15+OCTUBRE!C15+NOVIEMBRE!C15+DICIEMBRE!C15)","v":{"$error":"#REF!"}},{"$f":"SUM(ENERO!D15+#REF!+'I TRIMESTRE 2023'!D15+ABRIL!D15+MAYO!D15+JUNIO!D15+JULIO!D15+AGOSTO!D15+SETIEMBRE!D15+OCTUBRE!D15+NOVIEMBRE!D15+DICIEMBRE!D15)","v":{"$error":"#REF!"}},{"$f":"SUM(ENERO!E15+#REF!+'I TRIMESTRE 2023'!E15+ABRIL!E15+MAYO!E15+JUNIO!E15+JULIO!E15+AGOSTO!E15+SETIEMBRE!E15+OCTUBRE!E15+NOVIEMBRE!E15+DICIEMBRE!E15)","v":{"$error":"#REF!"}},{"$f":"SUM(ENERO!F15+#REF!+'I TRIMESTRE 2023'!F15+ABRIL!F15+MAYO!F15+JUNIO!F15+JULIO!F15+AGOSTO!F15+SETIEMBRE!F15+OCTUBRE!F15+NOVIEMBRE!F15+DICIEMBRE!F15)","v":{"$error":"#REF!"}},{"$error":"#REF!"}]
["PAUSA","CONFIRMAR QUE TODOS LOS MIEMBROS DEL EQUIPO PROGRAMADOS SE HAYAN PRESENTADO POR SU NOMBRE",{"$f":"SUM(ENERO!C16+#REF!+'I TRIMESTRE 2023'!C16+ABRIL!C16+MAYO!C16+JUNIO!C16+JULIO!C16+AGOSTO!C16+SETIEMBRE!C16+OCTUBRE!C16+NOVIEMBRE!C16+DICIEMBRE!C16)","v":{"$error":"#REF!"}},{"$f":"SUM(ENERO!D16+#REF!+'I TRIMESTRE 2023'!D16+ABRIL!D16+MAYO!D16+JUNIO!D16+JULIO!D16+AGOSTO!D16+SETIEMBRE!D16+OCTUBRE!D16+NOVIEMBRE!D16+DICIEMBRE!D16)","v":{"$error":"#REF!"}},{"$f":"SUM(ENERO!E16+#REF!+'I TRIMESTRE 2023'!E16+ABRIL!E16+MAYO!E16+JUNIO!E16+JULIO!E16+AGOSTO!E16+SETIEMBRE!E16+OCTUBRE!E16+NOVIEMBRE!E16+DICIEMBRE!E16)","v":{"$error":"#REF!"}},{"$f":"SUM(ENERO!F16+#REF!+'I TRIMESTRE 2023'!F16+ABRIL!F16+MAYO!F16+JUNIO!F16+JULIO!F16+AGOSTO!F16+SETIEMBRE!F16+OCTUBRE!F16+NOVIEMBRE!F16+DICIEMBRE!F16)","v":{"$error":"#REF!"}},{"$error":"#REF!"}]
[null,"CONFIRMAR LA IDENTIDAD DEL PACIENTE, EL PROCEDIMIENTO Y EL SITIO QUIRUGICO",{"$f":"SUM(ENERO!C17+#REF!+'I TRIMESTRE 2023'!C17+ABRIL!C17+MAYO!C17+JUNIO!C17+JULIO!C17+AGOSTO!C17+SETIEMBRE!C17+OCTUBRE!C17+NOVIEMBRE!C17+DICIEMBRE!C17)","v":{"$error":"#REF!"}},{"$f":"SUM(ENERO!D17+#REF!+'I TRIMESTRE 2023'!D17+ABRIL!D17+MAYO!D17+JUNIO!D17+JULIO!D17+AGOSTO!D17+SETIEMBRE!D17+OCTUBRE!D17+NOVIEMBRE!D17+DICIEMBRE!D17)","v":{"$error":"#REF!"}},{"$f":"SUM(ENERO!E17+#REF!+'I TRIMESTRE 2023'!E17+ABRIL!E17+MAYO!E17+JUNIO!E17+JULIO!E17+AGOSTO!E17+SETIEMBRE!E17+OCTUBRE!E17+NOVIEMBRE!E17+DICIEMBRE!E17)","v":{"$error":"#REF!"}},{"$f":"SUM(ENERO!F17+#REF!+'I TRIMESTRE 2023'!F17+ABRIL!F17+MAYO!F17+JUNIO!F17+JULIO!F17+AGOSTO!F17+SETIEMBRE!F17+OCTUBRE!F17+NOVIEMBRE!F17+DICIEMBRE!F17)","v":{"$error":"#REF!"}},{"$error":"#REF!"}]
[null,"CONFIRMAR SI TODOS LOS MIEMBROS DEL EQUIPO HAN CUMPLIDO CORRECTAMENTE CON EL PROTOCOLO DE AS",{"$f":"SUM(ENERO!C18+#REF!+'I TRIMESTRE 2023'!C18+ABRIL!C18+MAYO!C18+JUNIO!C18+JULIO!C18+AGOSTO!C18+SETIEMBRE!C18+OCTUBRE!C18+NOVIEMBRE!C18+DICIEMBRE!C18)","v":{"$error":"#REF!"}},{"$f":"SUM(ENERO!D18+#REF!+'I TRIMESTRE 2023'!D18+ABRIL!D18+MAYO!D18+JUNIO!D18+JULIO!D18+AGOSTO!D18+SETIEMBRE!D18+OCTUBRE!D18+NOVIEMBRE!D18+DICIEMBRE!D18)","v":{"$error":"#REF!"}},{"$f":"SUM(ENERO!E18+#REF!+'I TRIMESTRE 2023'!E18+ABRIL!E18+MAYO!E18+JUNIO!E18+JULIO!E18+AGOSTO!E18+SETIEMBRE!E18+OCTUBRE!E18+NOVIEMBRE!E18+DICIEMBRE!E18)","v":{"$error":"#REF!"}},{"$f":"SUM(ENERO!F18+#REF!+'I TRIMESTRE 2023'!F18+ABRIL!F18+MAYO!F18+JUNIO!F18+JULIO!F18+AGOSTO!F18+SETIEMBRE!F18+OCTUBRE!F18+NOVIEMBRE!F18+DICIEMBRE!F18)","v":{"$error":"#REF!"}},{"$error":"#REF!"}]
[null,"SE HA ADMINISTRADO PROFILAXIS CON ANTIBIOTICOS EN LOS ULTIMOS 60 MINUTOS",{"$f":"SUM(ENERO!C19+#REF!+'I TRIMESTRE 2023'!C19+ABRIL!C19+MAYO!C19+JUNIO!C19+JULIO!C19+AGOSTO!C19+SETIEMBRE!C19+OCTUBRE!C19+NOVIEMBRE!C19+DICIEMBRE!C19)","v":{"$error":"#REF!"}},{"$f":"SUM(ENERO!D19+#REF!+'I TRIMESTRE 2023'!D19+ABRIL!D19+MAYO!D19+JUNIO!D19+JULIO!D19+AGOSTO!D19+SETIEMBRE!D19+OCTUBRE!D19+NOVIEMBRE!D19+DICIEMBRE!D19)","v":{"$error":"#REF!"}},{"$f":"SUM(ENERO!E19+#REF!+'I TRIMESTRE 2023'!E19+ABRIL!E19+MAYO!E19+JUNIO!E19+JULIO!E19+AGOSTO!E19+SETIEMBRE!E19+OCTUBRE!E19+NOVIEMBRE!E19+DICIEMBRE!E19)","v":{"$error":"#REF!"}},{"$f":"SUM(ENERO!F19+#REF!+'I TRIMESTRE 2023'!F19+ABRIL!F19+MAYO!F19+JUNIO!F19+JULIO!F19+AGOSTO!F19+SETIEMBRE!F19+OCTUBRE!F19+NOVIEMBRE!F19+DICIEMBRE!F19)","v":{"$error":"#REF!"}},{"$error":"#REF!"},null,{"$f":"SUM(C16,C17,C18,C19,C20,,C22,D23,C24,D25,C26)","v":{"$error":"#REF!"}},{"$f":"I19/$I$21","v":{"$error":"#REF!"}}]
[null,"¿CUALES SON LOS PASOS CRITICOS O INESPERADO?",{"$f":"SUM(ENERO!C20+#REF!+'I TRIMESTRE 2023'!C20+ABRIL!C20+MAYO!C20+JUNIO!C20+JULIO!C20+AGOSTO!C20+SETIEMBRE!C20+OCTUBRE!C20+NOVIEMBRE!C20+DICIEMBRE!C20)","v":{"$error":"#REF!"}},{"$f":"SUM(ENERO!D20+#REF!+'I TRIMESTRE 2023'!D20+ABRIL!D20+MAYO!D20+JUNIO!D20+JULIO!D20+AGOSTO!D20+SETIEMBRE!D20+OCTUBRE!D20+NOVIEMBRE!D20+DICIEMBRE!D20)","v":{"$error":"#REF!"}},{"$f":"SUM(ENERO!E20+#REF!+'I TRIMESTRE 2023'!E20+ABRIL!E20+MAYO!E20+JUNIO!E20+JULIO!E20+AGOSTO!E20+SETIEMBRE!E20+OCTUBRE!E20+NOVIEMBRE!E20+DICIEMBRE!E20)","v":{"$error":"#REF!"}},{"$f":"SUM(ENERO!F20+#REF!+'I TRIMESTRE 2023'!F20+ABRIL!F20+MAYO!F20+JUNIO!F20+JULIO!F20+AGOSTO!F20+SETIEMBRE!F20+OCTUBRE!F20+NOVIEMBRE!F20+DICIEMBRE!F20)","v":{"$error":"#REF!"}},{"$error":"#REF!"},null,{"$f":"SUM(D16,D17,D18,D19,D20,D21,D22,C23,D24,C25,D26)","v":{"$error":"#REF!"}},{"$f":"I20/$I$21","v":{"$error":"#REF!"}}]
[null,"¿CUANTO DURARA LA OPERACIÓN?",{"$f":"SUM(ENERO!C21+#REF!+'I TRIMESTRE 2023'!C21+ABRIL!C21+MAYO!C21+JUNIO!C21+JULIO!C21+AGOSTO!C21+SETIEMBRE!C21+OCTUBRE!C21+NOVIEMBRE!C21+DICIEMBRE!C21)","v":{"$error":"#REF!"}},{"$f":"SUM(ENERO!D21+#REF!+'I TRIMESTRE 2023'!D21+ABRIL!D21+MAYO!D21+JUNIO!D21+JULIO!D21+AGOSTO!D21+SETIEMBRE!D21+OCTUBRE!D21+NOVIEMBRE!D21+DICIEMBRE!D21)","v":{"$error":"#REF!"}},{"$f":"SUM(ENERO!E21+#REF!+'I TRIMESTRE 2023'!E21+ABRIL!E21+MAYO!E21+JUNIO!E21+JULIO!E21+AGOSTO!E21+SETIEMBRE!E21+OCTUBRE!E21+NOVIEMBRE!E21+DICIEMBRE!E21)","v":{"$error":"#REF!"}},{"$f":"SUM(ENERO!F21+#REF!+'I TRIMESTRE 2023'!F21+ABRIL!F21+MAYO!F21+JUNIO!F21+JULIO!F21+AGOSTO!F21+SETIEMBRE!F21+OCTUBRE!F21+NOVIEMBRE!F21+DICIEMBRE!F21)","v":{"$error":"#REF!"}},{"$error":"#REF!"},null,{"$f":"SUM(I19:I20)","v":{"$error":"#REF!"}}]
[null,"¿CUANTO ES LA PERDIDA DE SALGRE PREVISTA?",{"$f":"SUM(ENERO!C22+#REF!+'I TRIMESTRE 2023'!C22+ABRIL!C22+MAYO!C22+JUNIO!C22+JULIO!C22+AGOSTO!C22+SETIEMBRE!C22+OCTUBRE!C22+NOVIEMBRE!C22+DICIEMBRE!C22)","v":{"$error":"#REF!"}},{"$f":"SUM(ENERO!D22+#REF!+'I TRIMESTRE 2023'!D22+ABRIL!D22+MAYO!D22+JUNIO!D22+JULIO!D22+AGOSTO!D22+SETIEMBRE!D22+OCTUBRE!D22+NOVIEMBRE!D22+DICIEMBRE!D22)","v":{"$error":"#REF!"}},{"$f":"SUM(ENERO!E22+#REF!+'I TRIMESTRE 2023'!E22+ABRIL!E22+MAYO!E22+JUNIO!E22+JULIO!E22+AGOSTO!E22+SETIEMBRE!E22+OCTUBRE!E22+NOVIEMBRE!E22+DICIEMBRE!E22)","v":{"$error":"#REF!"}},{"$f":"SUM(ENERO!F22+#REF!+'I TRIMESTRE 2023'!F22+ABRIL!F22+MAYO!F22+JUNIO!F22+JULIO!F22+AGOSTO!F22+SETIEMBRE!F22+OCTUBRE!F22+NOVIEMBRE!F22+DICIEMBRE!F22)","v":{"$error":"#REF!"}},{"$error":"#REF!"}]
[null,"¿PRESENTA EL PACIENTE ALGUN PROBLEMA ESPECIFICO?",{"$f":"SUM(ENERO!C23+#REF!+'I TRIMESTRE 2023'!C23+ABRIL!C23+MAYO!C23+JUNIO!C23+JULIO!C23+AGOSTO!C23+SETIEMBRE!C23+OCTUBRE!C23+NOVIEMBRE!C23+DICIEMBRE!C23)","v":{"$error":"#REF!"}},{"$f":"SUM(ENERO!D23+#REF!+'I TRIMESTRE 2023'!D23+ABRIL!D23+MAYO!D23+JUNIO!D23+JULIO!D23+AGOSTO!D23+SETIEMBRE!D23+OCTUBRE!D23+NOVIEMBRE!D23+DICIEMBRE!D23)","v":{"$error":"#REF!"}},{"$f":"SUM(ENERO!E23+#REF!+'I TRIMESTRE 2023'!E23+ABRIL!E23+MAYO!E23+JUNIO!E23+JULIO!E23+AGOSTO!E23+SETIEMBRE!E23+OCTUBRE!E23+NOVIEMBRE!E23+DICIEMBRE!E23)","v":{"$error":"#REF!"}},{"$f":"SUM(ENERO!F23+#REF!+'I TRIMESTRE 2023'!F23+ABRIL!F23+MAYO!F23+JUNIO!F23+JULIO!F23+AGOSTO!F23+SETIEMBRE!F23+OCTUBRE!F23+NOVIEMBRE!F23+DICIEMBRE!F23)","v":{"$error":"#REF!"}},{"$error":"#REF!"}]
[null,"¿SE HA CONFIRMADO LA ESTERILIDAD DE ROPA, INSTRUMENTAL Y EQUIPOS?",{"$f":"SUM(ENERO!C24+#REF!+'I TRIMESTRE 2023'!C24+ABRIL!C24+MAYO!C24+JUNIO!C24+JULIO!C24+AGOSTO!C24+SETIEMBRE!C24+OCTUBRE!C24+NOVIEMBRE!C24+DICIEMBRE!C24)","v":{"$error":"#REF!"}},{"$f":"SUM(ENERO!D24+#REF!+'I TRIMESTRE 2023'!D24+ABRIL!D24+MAYO!D24+JUNIO!D24+JULIO!D24+AGOSTO!D24+SETIEMBRE!D24+OCTUBRE!D24+NOVIEMBRE!D24+DICIEMBRE!D24)","v":{"$error":"#REF!"}},{"$f":"SUM(ENERO!E24+#REF!+'I TRIMESTRE 2023'!E24+ABRIL!E24+MAYO!E24+JUNIO!E24+JULIO!E24+AGOSTO!E24+SETIEMBRE!E24+OCTUBRE!E24+NOVIEMBRE!E24+DICIEMBRE!E24)","v":{"$error":"#REF!"}},{"$f":"SUM(ENERO!F24+#REF!+'I TRIMESTRE 2023'!F24+ABRIL!F24+MAYO!F24+JUNIO!F24+JULIO!F24+AGOSTO!F24+SETIEMBRE!F24+OCTUBRE!F24+NOVIEMBRE!F24+DICIEMBRE!F24)","v":{"$error":"#REF!"}},{"$error":"#REF!"}]
[null,"¿HAY DUDAS O PROBLEMAS RELACIONADOS CON ELLOS?",{"$f":"SUM(ENERO!C25+#REF!+'I TRIMESTRE 2023'!C25+ABRIL!C25+MAYO!C25+JUNIO!C25+JULIO!C25+AGOSTO!C25+SETIEMBRE!C25+OCTUBRE!C25+NOVIEMBRE!C25+DICIEMBRE!C25)","v":{"$error":"#REF!"}},{"$f":"SUM(ENERO!D25+#REF!+'I TRIMESTRE 2023'!D25+ABRIL!D25+MAYO!D25+JUNIO!D25+JULIO!D25+AGOSTO!D25+SETIEMBRE!D25+OCTUBRE!D25+NOVIEMBRE!D25+DICIEMBRE!D25)","v":{"$error":"#REF!"}},{"$f":"SUM(ENERO!E25+#REF!+'I TRIMESTRE 2023'!E25+ABRIL!E25+MAYO!E25+JUNIO!E25+JULIO!E25+AGOSTO!E25+SETIEMBRE!E25+OCTUBRE!E25+NOVIEMBRE!E25+DICIEMBRE!E25)","v":{"$error":"#REF!"}},{"$f":"SUM(ENERO!F25+#REF!+'I TRIMESTRE 2023'!F25+ABRIL!F25+MAYO!F25+JUNIO!F25+JULIO!F25+AGOSTO!F25+SETIEMBRE!F25+OCTUBRE!F25+NOVIEMBRE!F25+DICIEMBRE!F25)","v":{"$error":"#REF!"}},{"$error":"#REF!"}]
[null,"¿PUEDEN VISUALIZARSE LAS IMÁGENES DIAGNOSTICADAS ESENCIALES?",{"$f":"SUM(ENERO!C26+#REF!+'I TRIMESTRE 2023'!C26+ABRIL!C26+MAYO!C26+JUNIO!C26+JULIO!C26+AGOSTO!C26+SETIEMBRE!C26+OCTUBRE!C26+NOVIEMBRE!C26+DICIEMBRE!C26)","v":{"$error":"#REF!"}},{"$f":"SUM(ENERO!D26+#REF!+'I TRIMESTRE 2023'!D26+ABRIL!D26+MAYO!D26+JUNIO!D26+JULIO!D26+AGOSTO!D26+SETIEMBRE!D26+OCTUBRE!D26+NOVIEMBRE!D26+DICIEMBRE!D26)","v":{"$error":"#REF!"}},{"$f":"SUM(ENERO!E26+#REF!+'I TRIMESTRE 2023'!E26+ABRIL!E26+MAYO!E26+JUNIO!E26+JULIO!E26+AGOSTO!E26+SETIEMBRE!E26+OCTUBRE!E26+NOVIEMBRE!E26+DICIEMBRE!E26)","v":{"$error":"#REF!"}},{"$f":"SUM(ENERO!F26+#REF!+'I TRIMESTRE 2023'!F26+ABRIL!F26+MAYO!F26+JUNIO!F26+JULIO!F26+AGOSTO!F26+SETIEMBRE!F26+OCTUBRE!F26+NOVIEMBRE!F26+DICIEMBRE!F26)","v":{"$error":"#REF!"}},{"$error":"#REF!"}]
["SALIDA","EL ENFERMERO CONFIRMA VERBALMENTE EL NOMBRE DEL PROCEDIMIENTO",{"$f":"SUM(ENERO!C27+#REF!+'I TRIMESTRE 2023'!C27+ABRIL!C27+MAYO!C27+JUNIO!C27+JULIO!C27+AGOSTO!C27+SETIEMBRE!C27+OCTUBRE!C27+NOVIEMBRE!C27+DICIEMBRE!C27)","v":{"$error":"#REF!"}},{"$f":"SUM(ENERO!D27+#REF!+'I TRIMESTRE 2023'!D27+ABRIL!D27+MAYO!D27+JUNIO!D27+JULIO!D27+AGOSTO!D27+SETIEMBRE!D27+OCTUBRE!D27+NOVIEMBRE!D27+DICIEMBRE!D27)","v":{"$error":"#REF!"}},{"$f":"SUM(ENERO!E27+#REF!+'I TRIMESTRE 2023'!E27+ABRIL!E27+MAYO!E27+JUNIO!E27+JULIO!E27+AGOSTO!E27+SETIEMBRE!E27+OCTUBRE!E27+NOVIEMBRE!E27+DICIEMBRE!E27)","v":{"$error":"#REF!"}},{"$f":"SUM(ENERO!F27+#REF!+'I TRIMESTRE 2023'!F27+ABRIL!F27+MAYO!F27+JUNIO!F27+JULIO!F27+AGOSTO!F27+SETIEMBRE!F27+OCTUBRE!F27+NOVIEMBRE!F27+DICIEMBRE!F27)","v":{"$error":"#REF!"}},{"$error":"#REF!"}]
[null,"EL RECUENTO DE INSTRUMENTOS, GASA Y AGUJAS",{"$f":"SUM(ENERO!C28+#REF!+'I TRIMESTRE 2023'!C28+ABRIL!C28+MAYO!C28+JUNIO!C28+JULIO!C28+AGOSTO!C28+SETIEMBRE!C28+OCTUBRE!C28+NOVIEMBRE!C28+DICIEMBRE!C28)","v":{"$error":"#REF!"}},{"$f":"SUM(ENERO!D28+#REF!+'I TRIMESTRE 2023'!D28+ABRIL!D28+MAYO!D28+JUNIO!D28+JULIO!D28+AGOSTO!D28+SETIEMBRE!D28+OCTUBRE!D28+NOVIEMBRE!D28+DICIEMBRE!D28)","v":{"$error":"#REF!"}},{"$f":"SUM(ENERO!E28+#REF!+'I TRIMESTRE 2023'!E28+ABRIL!E28+MAYO!E28+JUNIO!E28+JULIO!E28+AGOSTO!E28+SETIEMBRE!E28+OCTUBRE!E28+NOVIEMBRE!E28+DICIEMBRE!E28)","v":{"$error":"#REF!"}},{"$f":"SUM(ENERO!F28+#REF!+'I TRIMESTRE 2023'!F28+ABRIL!F28+MAYO!F28+JUNIO!F28+JULIO!F28+AGOSTO!F28+SETIEMBRE!F28+OCTUBRE!F28+NOVIEMBRE!F28+DICIEMBRE!F28)","v":{"$error":"#REF!"}},{"$error":"#REF!"},null,{"$f":"SUM(C27,C28,C29,C30,C31,D32)","v":{"$error":"#REF!"}},{"$f":"I28/$I$30","v":{"$error":"#REF!"}}]
[null,"EL ETIQUETADO DE LAS MUESTRAS (LECTURA DE LA ETIQUETA EN VOZ ALTA, INCLUIDO EL NOMBRE DEL PACIENTE",{"$f":"SUM(ENERO!C29+#REF!+'I TRIMESTRE 2023'!C29+ABRIL!C29+MAYO!C29+JUNIO!C29+JULIO!C29+AGOSTO!C29+SETIEMBRE!C29+OCTUBRE!C29+NOVIEMBRE!C29+DICIEMBRE!C29)","v":{"$error":"#REF!"}},{"$f":"SUM(ENERO!D29+#REF!+'I TRIMESTRE 2023'!D29+ABRIL!D29+MAYO!D29+JUNIO!D29+JULIO!D29+AGOSTO!D29+SETIEMBRE!D29+OCTUBRE!D29+NOVIEMBRE!D29+DICIEMBRE!D29)","v":{"$error":"#REF!"}},{"$f":"SUM(ENERO!E29+#REF!+'I TRIMESTRE 2023'!E29+ABRIL!E29+MAYO!E29+JUNIO!E29+JULIO!E29+AGOSTO!E29+SETIEMBRE!E29+OCTUBRE!E29+NOVIEMBRE!E29+DICIEMBRE!E29)","v":{"$error":"#REF!"}},{"$f":"SUM(ENERO!F29+#REF!+'I TRIMESTRE 2023'!F29+ABRIL!F29+MAYO!F29+JUNIO!F29+JULIO!F29+AGOSTO!F29+SETIEMBRE!F29+OCTUBRE!F29+NOVIEMBRE!F29+DICIEMBRE!F29)","v":{"$error":"#REF!"}},{"$error":"#REF!"},null,{"$f":"SUM(D27,D28,D29,D30,D31,C32)","v":{"$error":"#REF!"}},{"$f":"I29/$I$30","v":{"$error":"#REF!"}}]
[null,"SI HAY PROBLEMAS QUE SE RESUELVE RELACIONADOS CON EL INSTRUMENTAL Y LOS EQUIPOS",{"$f":"SUM(ENERO!C30+#REF!+'I TRIMESTRE 2023'!C30+ABRIL!C30+MAYO!C30+JUNIO!C30+JULIO!C30+AGOSTO!C30+SETIEMBRE!C30+OCTUBRE!C30+NOVIEMBRE!C30+DICIEMBRE!C30)","v":{"$error":"#REF!"}},{"$f":"SUM(ENERO!D30+#REF!+'I TRIMESTRE 2023'!D30+ABRIL!D30+MAYO!D30+JUNIO!D30+JULIO!D30+AGOSTO!D30+SETIEMBRE!D30+OCTUBRE!D30+NOVIEMBRE!D30+DICIEMBRE!D30)","v":{"$error":"#REF!"}},{"$f":"SUM(ENERO!E30+#REF!+'I TRIMESTRE 2023'!E30+ABRIL!E30+MAYO!E30+JUNIO!E30+JULIO!E30+AGOSTO!E30+SETIEMBRE!E30+OCTUBRE!E30+NOVIEMBRE!E30+DICIEMBRE!E30)","v":{"$error":"#REF!"}},{"$f":"SUM(ENERO!F30+#REF!+'I TRIMESTRE 2023'!F30+ABRIL!F30+MAYO!F30+JUNIO!F30+JULIO!F30+AGOSTO!F30+SETIEMBRE!F30+OCTUBRE!F30+NOVIEMBRE!F30+DICIEMBRE!F30)","v":{"$error":"#REF!"}},{"$error":"#REF!"},null,{"$f":"SUM(I28:I29)","v":{"$error":"#REF!"}}]
[null,"(CIRUJANO, ANESTESIOLOGO, ENFERMERO) CUALES SON LOS ASPECTOS CRITICOS DE LA RECUPERACION Y EL TRAMITE",{"$f":"SUM(ENERO!C31+#REF!+'I TRIMESTRE 2023'!C31+ABRIL!C31+MAYO!C31+JUNIO!C31+JULIO!C31+AGOSTO!C31+SETIEMBRE!C31+OCTUBRE!C31+NOVIEMBRE!C31+DICIEMBRE!C31)","v":{"$error":"#REF!"}},{"$f":"SUM(ENERO!D31+#REF!+'I TRIMESTRE 2023'!D31+ABRIL!D31+MAYO!D31+JUNIO!D31+JULIO!D31+AGOSTO!D31+SETIEMBRE!D31+OCTUBRE!D31+NOVIEMBRE!D31+DICIEMBRE!D31)","v":{"$error":"#REF!"}},{"$f":"SUM(ENERO!E31+#REF!+'I TRIMESTRE 2023'!E31+ABRIL!E31+MAYO!E31+JUNIO!E31+JULIO!E31+AGOSTO!E31+SETIEMBRE!E31+OCTUBRE!E31+NOVIEMBRE!E31+DICIEMBRE!E31)","v":{"$error":"#REF!"}},{"$f":"SUM(ENERO!F31+#REF!+'I TRIMESTRE 2023'!F31+ABRIL!F31+MAYO!F31+JUNIO!F31+JULIO!F31+AGOSTO!F31+SETIEMBRE!F31+OCTUBRE!F31+NOVIEMBRE!F31+DICIEMBRE!F31)","v":{"$error":"#REF!"}},{"$error":"#REF!"}]
[null,"OBSERVACIONES",{"$f":"SUM(ENERO!C32+#REF!+'I TRIMESTRE 2023'!C32+ABRIL!C32+MAYO!C32+JUNIO!C32+JULIO!C32+AGOSTO!C32+SETIEMBRE!C32+OCTUBRE!C32+NOVIEMBRE!C32+DICIEMBRE!C32)","v":{"$error":"#REF!"}},{"$f":"SUM(ENERO!D32+#REF!+'I TRIMESTRE 2023'!D32+ABRIL!D32+MAYO!D32+JUNIO!D32+JULIO!D32+AGOSTO!D32+SETIEMBRE!D32+OCTUBRE!D32+NOVIEMBRE!D32+DICIEMBRE!D32)","v":{"$error":"#REF!"}},{"$f":"SUM(ENERO!E32+#REF!+'I TRIMESTRE 2023'!E32+ABRIL!E32+MAYO!E32+JUNIO!E32+JULIO!E32+AGOSTO!E32+SETIEMBRE!E32+OCTUBRE!E32+NOVIEMBRE!E32+DICIEMBRE!E32)","v":{"$error":"#REF!"}},{"$f":"SUM(ENERO!F32+#REF!+'I TRIMESTRE 2023'!F32+ABRIL!F32+MAYO!F32+JUNIO!F32+JULIO!F32+AGOSTO!F32+SETIEMBRE!F32+OCTUBRE!F32+NOVIEMBRE!F32+DICIEMBRE!F32)","v":{"$error":"#REF!"}},{"$error":"#REF!"}]
["FIRMA","FIRMA DEL CIRUJANO",{"$f":"SUM(ENERO!C33+#REF!+'I TRIMESTRE 2023'!C33+ABRIL!C33+MAYO!C33+JUNIO!C33+JULIO!C33+AGOSTO!C33+SETIEMBRE!C33+OCTUBRE!C33+NOVIEMBRE!C33+DICIEMBRE!C33)","v":{"$error":"#REF!"}},{"$f":"SUM(ENERO!D33+#REF!+'I TRIMESTRE 2023'!D33+ABRIL!D33+MAYO!D33+JUNIO!D33+JULIO!D33+AGOSTO!D33+SETIEMBRE!D33+OCTUBRE!D33+NOVIEMBRE!D33+DICIEMBRE!D33)","v":{"$error":"#REF!"}},{"$f":"SUM(ENERO!E33+#REF!+'I TRIMESTRE 2023'!E33+ABRIL!E33+MAYO!E33+JUNIO!E33+JULIO!E33+AGOSTO!E33+SETIEMBRE!E33+OCTUBRE!E33+NOVIEMBRE!E33+DICIEMBRE!E33)","v":{"$error":"#REF!"}},{"$f":"SUM(ENERO!F33+#REF!+'I TRIMESTRE 2023'!F33+ABRIL!F33+MAYO!F33+JUNIO!F33+JULIO!F33+AGOSTO!F33+SETIEMBRE!F33+OCTUBRE!F33+NOVIEMBRE!F33+DICIEMBRE!F33)","v":{"$error":"#REF!"}},{"$error":"#REF!"}]
[null,"FIRMA DEL ANESTESIOLOGO",{"$f":"SUM(ENERO!C34+#REF!+'I TRIMESTRE 2023'!C34+ABRIL!C34+MAYO!C34+JUNIO!C34+JULIO!C34+AGOSTO!C34+SETIEMBRE!C34+OCTUBRE!C34+NOVIEMBRE!C34+DICIEMBRE!C34)","v":{"$error":"#REF!"}},{"$f":"SUM(ENERO!D34+#REF!+'I TRIMESTRE 2023'!D34+ABRIL!D34+MAYO!D34+JUNIO!D34+JULIO!D34+AGOSTO!D34+SETIEMBRE!D34+OCTUBRE!D34+NOVIEMBRE!D34+DICIEMBRE!D34)","v":{"$error":"#REF!"}},{"$f":"SUM(ENERO!E34+#REF!+'I TRIMESTRE 2023'!E34+ABRIL!E34+MAYO!E34+JUNIO!E34+JULIO!E34+AGOSTO!E34+SETIEMBRE!E34+OCTUBRE!E34+NOVIEMBRE!E34+DICIEMBRE!E34)","v":{"$error":"#REF!"}},{"$f":"SUM(ENERO!F34+#REF!+'I TRIMESTRE 2023'!F34+ABRIL!F34+MAYO!F34+JUNIO!F34+JULIO!F34+AGOSTO!F34+SETIEMBRE!F34+OCTUBRE!F34+NOVIEMBRE!F34+DICIEMBRE!F34)","v":{"$error":"#REF!"}},{"$error":"#REF!"}]
[null,"FIRMA DE LA ENFERMERA",{"$f":"SUM(ENERO!C35+#REF!+'I TRIMESTRE 2023'!C35+ABRIL!C35+MAYO!C35+JUNIO!C35+JULIO!C35+AGOSTO!C35+SETIEMBRE!C35+OCTUBRE!C35+NOVIEMBRE!C35+DICIEMBRE!C35)","v":{"$error":"#REF!"}},{"$f":"SUM(ENERO!D35+#REF!+'I TRIMESTRE 2023'!D35+ABRIL!D35+MAYO!D35+JUNIO!D35+JULIO!D35+AGOSTO!D35+SETIEMBRE!D35+OCTUBRE!D35+NOVIEMBRE!D35+DICIEMBRE!D35)","v":{"$error":"#REF!"}},{"$f":"SUM(ENERO!E35+#REF!+'I TRIMESTRE 2023'!E35+ABRIL!E35+MAYO!E35+JUNIO!E35+JULIO!E35+AGOSTO!E35+SETIEMBRE!E35+OCTUBRE!E35+NOVIEMBRE!E35+DICIEMBRE!E35)","v":{"$error":"#REF!"}},{"$f":"SUM(ENERO!F35+#REF!+'I TRIMESTRE 2023'!F35+ABRIL!F35+MAYO!F35+JUNIO!F35+JULIO!F35+AGOSTO!F35+SETIEMBRE!F35+OCTUBRE!F35+NOVIEMBRE!F35+DICIEMBRE!F35)","v":{"$error":"#REF!"}},{"$error":"#REF!"},null,{"$f":"SUM(C33,C34,C35,C36,C37,C38,C39)","v":{"$error":"#REF!"}},{"$f":"I35/$I$37","v":{"$error":"#REF!"}}]
[null,"FIRMA DEL COORDINADOR",{"$f":"SUM(ENERO!C36+#REF!+'I TRIMESTRE 2023'!C36+ABRIL!C36+MAYO!C36+JUNIO!C36+JULIO!C36+AGOSTO!C36+SETIEMBRE!C36+OCTUBRE!C36+NOVIEMBRE!C36+DICIEMBRE!C36)","v":{"$error":"#REF!"}},{"$f":"SUM(ENERO!D36+#REF!+'I TRIMESTRE 2023'!D36+ABRIL!D36+MAYO!D36+JUNIO!D36+JULIO!D36+AGOSTO!D36+SETIEMBRE!D36+OCTUBRE!D36+NOVIEMBRE!D36+DICIEMBRE!D36)","v":{"$error":"#REF!"}},{"$f":"SUM(ENERO!E36+#REF!+'I TRIMESTRE 2023'!E36+ABRIL!E36+MAYO!E36+JUNIO!E36+JULIO!E36+AGOSTO!E36+SETIEMBRE!E36+OCTUBRE!E36+NOVIEMBRE!E36+DICIEMBRE!E36)","v":{"$error":"#REF!"}},{"$f":"SUM(ENERO!F36+#REF!+'I TRIMESTRE 2023'!F36+ABRIL!F36+MAYO!F36+JUNIO!F36+JULIO!F36+AGOSTO!F36+SETIEMBRE!F36+OCTUBRE!F36+NOVIEMBRE!F36+DICIEMBRE!F36)","v":{"$error":"#REF!"}},{"$error":"#REF!"},null,{"$f":"SUM(D33,D34,D35,D36,D37,,D38,D39)","v":{"$error":"#REF!"}},{"$f":"I36/$I$37","v":{"$error":"#REF!"}}]
[null,"NRO DE HISTORIA CLINICA",{"$f":"SUM(ENERO!C37+#REF!+'I TRIMESTRE 2023'!C37+ABRIL!C37+MAYO!C37+JUNIO!C37+JULIO!C37+AGOSTO!C37+SETIEMBRE!C37+OCTUBRE!C37+NOVIEMBRE!C37+DICIEMBRE!C37)","v":{"$error":"#REF!"}},{"$f":"SUM(ENERO!D37+#REF!+'I TRIMESTRE 2023'!D37+ABRIL!D37+MAYO!D37+JUNIO!D37+JULIO!D37+AGOSTO!D37+SETIEMBRE!D37+OCTUBRE!D37+NOVIEMBRE!D37+DICIEMBRE!D37)","v":{"$error":"#REF!"}},{"$f":"SUM(ENERO!E37+#REF!+'I TRIMESTRE 2023'!E37+ABRIL!E37+MAYO!E37+JUNIO!E37+JULIO!E37+AGOSTO!E37+SETIEMBRE!E37+OCTUBRE!E37+NOVIEMBRE!E37+DICIEMBRE!E37)","v":{"$error":"#REF!"}},{"$f":"SUM(ENERO!F37+#REF!+'I TRIMESTRE 2023'!F37+ABRIL!F37+MAYO!F37+JUNIO!F37+JULIO!F37+AGOSTO!F37+SETIEMBRE!F37+OCTUBRE!F37+NOVIEMBRE!F37+DICIEMBRE!F37)","v":{"$error":"#REF!"}},{"$error":"#REF!"},null,{"$f":"SUM(I35:I36)","v":{"$error":"#REF!"}}]
[null,"NOMBRE Y APELLIDOS DEL PACIENTE",{"$f":"SUM(ENERO!C38+#REF!+'I TRIMESTRE 2023'!C38+ABRIL!C38+MAYO!C38+JUNIO!C38+JULIO!C38+AGOSTO!C38+SETIEMBRE!C38+OCTUBRE!C38+NOVIEMBRE!C38+DICIEMBRE!C38)","v":{"$error":"#REF!"}},{"$f":"SUM(ENERO!D38+#REF!+'I TRIMESTRE 2023'!D38+ABRIL!D38+MAYO!D38+JUNIO!D38+JULIO!D38+AGOSTO!D38+SETIEMBRE!D38+OCTUBRE!D38+NOVIEMBRE!D38+DICIEMBRE!D38)","v":{"$error":"#REF!"}},{"$f":"SUM(ENERO!E38+#REF!+'I TRIMESTRE 2023'!E38+ABRIL!E38+MAYO!E38+JUNIO!E38+JULIO!E38+AGOSTO!E38+SETIEMBRE!E38+OCTUBRE!E38+NOVIEMBRE!E38+DICIEMBRE!E38)","v":{"$error":"#REF!"}},{"$f":"SUM(ENERO!F38+#REF!+'I TRIMESTRE 2023'!F38+ABRIL!F38+MAYO!F38+JUNIO!F38+JULIO!F38+AGOSTO!F38+SETIEMBRE!F38+OCTUBRE!F38+NOVIEMBRE!F38+DICIEMBRE!F38)","v":{"$error":"#REF!"}},{"$error":"#REF!"}]
[null,"FECHA",{"$f":"SUM(ENERO!C39+#REF!+'I TRIMESTRE 2023'!C39+ABRIL!C39+MAYO!C39+JUNIO!C39+JULIO!C39+AGOSTO!C39+SETIEMBRE!C39+OCTUBRE!C39+NOVIEMBRE!C39+DICIEMBRE!C39)","v":{"$error":"#REF!"}},{"$f":"SUM(ENERO!D39+#REF!+'I TRIMESTRE 2023'!D39+ABRIL!D39+MAYO!D39+JUNIO!D39+JULIO!D39+AGOSTO!D39+SETIEMBRE!D39+OCTUBRE!D39+NOVIEMBRE!D39+DICIEMBRE!D39)","v":{"$error":"#REF!"}},{"$f":"SUM(ENERO!E39+#REF!+'I TRIMESTRE 2023'!E39+ABRIL!E39+MAYO!E39+JUNIO!E39+JULIO!E39+AGOSTO!E39+SETIEMBRE!E39+OCTUBRE!E39+NOVIEMBRE!E39+DICIEMBRE!E39)","v":{"$error":"#REF!"}},{"$f":"SUM(ENERO!F39+#REF!+'I TRIMESTRE 2023'!F39+ABRIL!F39+MAYO!F39+JUNIO!F39+JULIO!F39+AGOSTO!F39+SETIEMBRE!F39+OCTUBRE!F39+NOVIEMBRE!F39+DICIEMBRE!F39)","v":{"$error":"#REF!"}},{"$error":"#REF!"}]
[]
[]
[]
[]
[]
[null,"PORCENTAJE DE CUMPLIMIENTO DE LA LISTA DE VERIFICACION DE CIRUGIA SEGURA"]
[]
[]
[]
[]
[]
[null,null,"ENTRADA","(+)",{"$f":"J8","v":{"$error":"#REF!"}}]
[null,null,null,"(-)",{"$f":"J9","v":{"$error":"#REF!"}}]
[null,null,"PAUSA","(+)",{"$f":"J19","v":{"$error":"#REF!"}},null,null,null,null,null,null,null,"Cumplimiento"]
[null,null,null,"(-)",{"$f":"J20","v":{"$error":"#REF!"}},null,null,null,null,null,null,"Entrada",{"$f":"E51","v":{"$error":"#REF!"}}]
[null,null,"SALIDA","(+)",{"$f":"J28","v":{"$error":"#REF!"}},null,null,null,null,null,null,"Pausa",{"$f":"E53","v":{"$error":"#REF!"}}]
[null,null,null,"(-)",{"$f":"J29","v":{"$error":"#REF!"}},null,null,null,null,null,null,"Salida",{"$f":"E55","v":{"$error":"#REF!"}}]
[null,null,"FIRMA","(+)",{"$f":"J35","v":{"$error":"#REF!"}},null,null,null,null,null,null,"Firmas",{"$f":"E57","v":{"$error":"#REF!"}}]
[null,null,null,"(-)",{"$f":"J36","v":{"$error":"#REF!"}},null,null,null,null,null,null,"Cumplimiento Mensual",{"$f":"AVERAGE(M54:M57)","v":{"$error":"#REF!"}}]
[null,null,"CUMPLIMIENTO",null,{"$f":"M58","v":{"$error":"#REF!"}}]